Workbook

Sheet Portada
D21: Proceso Jerárquico Analítico Selección de una Modalidad de Contratación
M28: Preparado por:

Sheet Entrada
C2: 3 | E2: Alternativas
B4: A1 | C4: Obra Pública Tradicional (OPT)
B5: A2 | C5: OPT (Etapa de Construcción) + APP (Etapa de Operación y Mantenimiento)
B6: A3 | C6: Asociación Pública-Privada (APP)
E8: Criterios
HE10: 2
HE11: 2
B79: CAMPO NO HABILITADO | C79: CAMPO NO HABILITADO | D79: CAMPO NO HABILITADO | E79: CAMPO NO HABILITADO | F79: CAMPO NO HABILITADO | G79: CAMPO NO HABILITADO | H79: CAMPO NO HABILITADO | I79: CAMPO NO HABILITADO | J79: CAMPO NO HABILITADO | K79: CAMPO NO HABILITADO | L79: CAMPO NO HABILITADO | M79: CAMPO NO HABILITADO | O79: CAMPO NO HABILITADO | P79: CAMPO NO HABILITADO | Q79: CAMPO NO HABILITADO | R79: CAMPO NO HABILITADO | S79: CAMPO NO HABILITADO | T79: CAMPO NO HABILITADO | U79: CAMPO NO HABILITADO | V79: CAMPO NO HABILITADO | W79: CAMPO NO HABILITADO | X79: CAMPO NO HABILITADO | Y79: CAMPO NO HABILITADO | Z79: CAMPO NO HABILITADO
B80: CAMPO NO HABILITADO | C80: CAMPO NO HABILITADO | D80: CAMPO NO HABILITADO | E80: CAMPO NO HABILITADO | F80: CAMPO NO HABILITADO | G80: CAMPO NO HABILITADO | H80: CAMPO NO HABILITADO | I80: CAMPO NO HABILITADO | J80: CAMPO NO HABILITADO | K80: CAMPO NO HABILITADO | L80: CAMPO NO HABILITADO | M80: CAMPO NO HABILITADO | O80: CAMPO NO HABILITADO | P80: CAMPO NO HABILITADO | Q80: CAMPO NO HABILITADO | R80: CAMPO NO HABILITADO | S80: CAMPO NO HABILITADO | T80: CAMPO NO HABILITADO | U80: CAMPO NO HABILITADO | V80: CAMPO NO HABILITADO | W80: CAMPO NO HABILITADO | X80: CAMPO NO HABILITADO | Y80: CAMPO NO HABILITADO | Z80: CAMPO NO HABILITADO
B90: CAMPO NO HABILITADO | C90: CAMPO NO HABILITADO | D90: CAMPO NO HABILITADO | E90: CAMPO NO HABILITADO | F90: CAMPO NO HABILITADO | G90: CAMPO NO HABILITADO | H90: CAMPO NO HABILITADO | I90: CAMPO NO HABILITADO | J90: CAMPO NO HABILITADO | K90: CAMPO NO HABILITADO | L90: CAMPO NO HABILITADO | M90: CAMPO NO HABILITADO | O90: CAMPO NO HABILITADO | P90: CAMPO NO HABILITADO | Q90: CAMPO NO HABILITADO | R90: CAMPO NO HABILITADO | S90: CAMPO NO HABILITADO | T90: CAMPO NO HABILITADO | U90: CAMPO NO HABILITADO | V90: CAMPO NO HABILITADO | W90: CAMPO NO HABILITADO | X90: CAMPO NO HABILITADO | Y90: CAMPO NO HABILITADO | Z90: CAMPO NO HABILITADO
B91: CAMPO NO HABILITADO | C91: CAMPO NO HABILITADO | D91: CAMPO NO HABILITADO | E91: CAMPO NO HABILITADO | F91: CAMPO NO HABILITADO | G91: CAMPO NO HABILITADO | H91: CAMPO NO HABILITADO | I91: CAMPO NO HABILITADO | J91: CAMPO NO HABILITADO | K91: CAMPO NO HABILITADO | L91: CAMPO NO HABILITADO | M91: CAMPO NO HABILITADO | O91: CAMPO NO HABILITADO | P91: CAMPO NO HABILITADO | Q91: CAMPO NO HABILITADO | R91: CAMPO NO HABILITADO | S91: CAMPO NO HABILITADO | T91: CAMPO NO HABILITADO | U91: CAMPO NO HABILITADO | V91: CAMPO NO HABILITADO | W91: CAMPO NO HABILITADO | X91: CAMPO NO HABILITADO | Y91: CAMPO NO HABILITADO | Z91: CAMPO NO HABILITADO
B101: CAMPO NO HABILITADO | C101: CAMPO NO HABILITADO | D101: CAMPO NO HABILITADO | E101: CAMPO NO HABILITADO | F101: CAMPO NO HABILITADO | G101: CAMPO NO HABILITADO | H101: CAMPO NO HABILITADO | I101: CAMPO NO HABILITADO | J101: CAMPO NO HABILITADO | K101: CAMPO NO HABILITADO | L101: CAMPO NO HABILITADO | M101: CAMPO NO HABILITADO | O101: CAMPO NO HABILITADO | P101: CAMPO NO HABILITADO | Q101: CAMPO NO HABILITADO | R101: CAMPO NO HABILITADO | S101: CAMPO NO HABILITADO | T101: CAMPO NO HABILITADO | U101: CAMPO NO HABILITADO | V101: CAMPO NO HABILITADO | W101: CAMPO NO HABILITADO | X101: CAMPO NO HABILITADO | Y101: CAMPO NO HABILITADO | Z101: CAMPO NO HABILITADO
B102: CAMPO NO HABILITADO | C102: CAMPO NO HABILITADO | D102: CAMPO NO HABILITADO | E102: CAMPO NO HABILITADO | F102: CAMPO NO HABILITADO | G102: CAMPO NO HABILITADO | H102: CAMPO NO HABILITADO | I102: CAMPO NO HABILITADO | J102: CAMPO NO HABILITADO | K102: CAMPO NO HABILITADO | L102: CAMPO NO HABILITADO | M102: CAMPO NO HABILITADO | O102: CAMPO NO HABILITADO | P102: CAMPO NO HABILITADO | Q102: CAMPO NO HABILITADO | R102: CAMPO NO HABILITADO | S102: CAMPO NO HABILITADO | T102: CAMPO NO HABILITADO | U102: CAMPO NO HABILITADO | V102: CAMPO NO HABILITADO | W102: CAMPO NO HABILITADO | X102: CAMPO NO HABILITADO | Y102: CAMPO NO HABILITADO | Z102: CAMPO NO HABILITADO
B112: CAMPO NO HABILITADO | C112: CAMPO NO HABILITADO | D112: CAMPO NO HABILITADO | E112: CAMPO NO HABILITADO | F112: CAMPO NO HABILITADO | G112: CAMPO NO HABILITADO | H112: CAMPO NO HABILITADO | I112: CAMPO NO HABILITADO | J112: CAMPO NO HABILITADO | K112: CAMPO NO HABILITADO | L112: CAMPO NO HABILITADO | M112: CAMPO NO HABILITADO | O112: CAMPO NO HABILITADO | P112: CAMPO NO HABILITADO | Q112: CAMPO NO HABILITADO | R112: CAMPO NO HABILITADO | S112: CAMPO NO HABILITADO | T112: CAMPO NO HABILITADO | U112: CAMPO NO HABILITADO | V112: CAMPO NO HABILITADO | W112: CAMPO NO HABILITADO | X112: CAMPO NO HABILITADO | Y112: CAMPO NO HABILITADO | Z112: CAMPO NO HABILITADO
B113: CAMPO NO HABILITADO | C113: CAMPO NO HABILITADO | D113: CAMPO NO HABILITADO | E113: CAMPO NO HABILITADO | F113: CAMPO NO HABILITADO | G113: CAMPO NO HABILITADO | H113: CAMPO NO HABILITADO | I113: CAMPO NO HABILITADO | J113: CAMPO NO HABILITADO | K113: CAMPO NO HABILITADO | L113: CAMPO NO HABILITADO | M113: CAMPO NO HABILITADO | O113: CAMPO NO HABILITADO | P113: CAMPO NO HABILITADO | Q113: CAMPO NO HABILITADO | R113: CAMPO NO HABILITADO | S113: CAMPO NO HABILITADO | T113: CAMPO NO HABILITADO | U113: CAMPO NO HABILITADO | V113: CAMPO NO HABILITADO | W113: CAMPO NO HABILITADO | X113: CAMPO NO HABILITADO | Y113: CAMPO NO HABILITADO | Z113: CAMPO NO HABILITADO
B123: CAMPO NO HABILITADO | C123: CAMPO NO HABILITADO | D123: CAMPO NO HABILITADO | E123: CAMPO NO HABILITADO | F123: CAMPO NO HABILITADO | G123: CAMPO NO HABILITADO | H123: CAMPO NO HABILITADO | I123: CAMPO NO HABILITADO | J123: CAMPO NO HABILITADO | K123: CAMPO NO HABILITADO | L123: CAMPO NO HABILITADO | M123: CAMPO NO HABILITADO | O123: CAMPO NO HABILITADO | P123: CAMPO NO HABILITADO | Q123: CAMPO NO HABILITADO | R123: CAMPO NO HABILITADO | S123: CAMPO NO HABILITADO | T123: CAMPO NO HABILITADO | U123: CAMPO NO HABILITADO | V123: CAMPO NO HABILITADO | W123: CAMPO NO HABILITADO | X123: CAMPO NO HABILITADO | Y123: CAMPO NO HABILITADO | Z123: CAMPO NO HABILITADO
B124: CAMPO NO HABILITADO | C124: CAMPO NO HABILITADO | D124: CAMPO NO HABILITADO | E124: CAMPO NO HABILITADO | F124: CAMPO NO HABILITADO | G124: CAMPO NO HABILITADO | H124: CAMPO NO HABILITADO | I124: CAMPO NO HABILITADO | J124: CAMPO NO HABILITADO | K124: CAMPO NO HABILITADO | L124: CAMPO NO HABILITADO | M124: CAMPO NO HABILITADO | O124: CAMPO NO HABILITADO | P124: CAMPO NO HABILITADO | Q124: CAMPO NO HABILITADO | R124: CAMPO NO HABILITADO | S124: CAMPO NO HABILITADO | T124: CAMPO NO HABILITADO | U124: CAMPO NO HABILITADO | V124: CAMPO NO HABILITADO | W124: CAMPO NO HABILITADO | X124: CAMPO NO HABILITADO | Y124: CAMPO NO HABILITADO | Z124: CAMPO NO HABILITADO
B134: CAMPO NO HABILITADO | C134: CAMPO NO HABILITADO | D134: CAMPO NO HABILITADO | E134: CAMPO NO HABILITADO | F134: CAMPO NO HABILITADO | G134: CAMPO NO HABILITADO | H134: CAMPO NO HABILITADO | I134: CAMPO NO HABILITADO | J134: CAMPO NO HABILITADO | K134: CAMPO NO HABILITADO | L134: CAMPO NO HABILITADO | M134: CAMPO NO HABILITADO | O134: CAMPO NO HABILITADO | P134: CAMPO NO HABILITADO | Q134: CAMPO NO HABILITADO | R134: CAMPO NO HABILITADO | S134: CAMPO NO HABILITADO | T134: CAMPO NO HABILITADO | U134: CAMPO NO HABILITADO | V134: CAMPO NO HABILITADO | W134: CAMPO NO HABILITADO | X134: CAMPO NO HABILITADO | Y134: CAMPO NO HABILITADO | Z134: CAMPO NO HABILITADO
B135: CAMPO NO HABILITADO | C135: CAMPO NO HABILITADO | D135: CAMPO NO HABILITADO | E135: CAMPO NO HABILITADO | F135: CAMPO NO HABILITADO | G135: CAMPO NO HABILITADO | H135: CAMPO NO HABILITADO | I135: CAMPO NO HABILITADO | J135: CAMPO NO HABILITADO | K135: CAMPO NO HABILITADO | L135: CAMPO NO HABILITADO | M135: CAMPO NO HABILITADO | O135: CAMPO NO HABILITADO | P135: CAMPO NO HABILITADO | Q135: CAMPO NO HABILITADO | R135: CAMPO NO HABILITADO | S135: CAMPO NO HABILITADO | T135: CAMPO NO HABILITADO | U135: CAMPO NO HABILITADO | V135: CAMPO NO HABILITADO | W135: CAMPO NO HABILITADO | X135: CAMPO NO HABILITADO | Y135: CAMPO NO HABILITADO | Z135: CAMPO NO HABILITADO
B145: CAMPO NO HABILITADO | C145: CAMPO NO HABILITADO | D145: CAMPO NO HABILITADO | E145: CAMPO NO HABILITADO | F145: CAMPO NO HABILITADO | G145: CAMPO NO HABILITADO | H145: CAMPO NO HABILITADO | I145: CAMPO NO HABILITADO | J145: CAMPO NO HABILITADO | K145: CAMPO NO HABILITADO | L145: CAMPO NO HABILITADO | M145: CAMPO NO HABILITADO | O145: CAMPO NO HABILITADO | P145: CAMPO NO HABILITADO | Q145: CAMPO NO HABILITADO | R145: CAMPO NO HABILITADO | S145: CAMPO NO HABILITADO | T145: CAMPO NO HABILITADO | U145: CAMPO NO HABILITADO | V145: CAMPO NO HABILITADO | W145: CAMPO NO HABILITADO | X145: CAMPO NO HABILITADO | Y145: CAMPO NO HABILITADO | Z145: CAMPO NO HABILITADO
B146: CAMPO NO HABILITADO | C146: CAMPO NO HABILITADO | D146: CAMPO NO HABILITADO | E146: CAMPO NO HABILITADO | F146: CAMPO NO HABILITADO | G146: CAMPO NO HABILITADO | H146: CAMPO NO HABILITADO | I146: CAMPO NO HABILITADO | J146: CAMPO NO HABILITADO | K146: CAMPO NO HABILITADO | L146: CAMPO NO HABILITADO | M146: CAMPO NO HABILITADO | O146: CAMPO NO HABILITADO | P146: CAMPO NO HABILITADO | Q146: CAMPO NO HABILITADO | R146: CAMPO NO HABILITADO | S146: CAMPO NO HABILITADO | T146: CAMPO NO HABILITADO | U146: CAMPO NO HABILITADO | V146: CAMPO NO HABILITADO | W146: CAMPO NO HABILITADO | X146: CAMPO NO HABILITADO | Y146: CAMPO NO HABILITADO | Z146: CAMPO NO HABILITADO
B156: CAMPO NO HABILITADO | C156: CAMPO NO HABILITADO | D156: CAMPO NO HABILITADO | E156: CAMPO NO HABILITADO | F156: CAMPO NO HABILITADO | G156: CAMPO NO HABILITADO | H156: CAMPO NO HABILITADO | I156: CAMPO NO HABILITADO | J156: CAMPO NO HABILITADO | K156: CAMPO NO HABILITADO | L156: CAMPO NO HABILITADO | M156: CAMPO NO HABILITADO | O156: CAMPO NO HABILITADO | P156: CAMPO NO HABILITADO | Q156: CAMPO NO HABILITADO | R156: CAMPO NO HABILITADO | S156: CAMPO NO HABILITADO | T156: CAMPO NO HABILITADO | U156: CAMPO NO HABILITADO | V156: CAMPO NO HABILITADO | W156: CAMPO NO HABILITADO | X156: CAMPO NO HABILITADO | Y156: CAMPO NO HABILITADO | Z156: CAMPO NO HABILITADO
B157: CAMPO NO HABILITADO | C157: CAMPO NO HABILITADO | D157: CAMPO NO HABILITADO | E157: CAMPO NO HABILITADO | F157: CAMPO NO HABILITADO | G157: CAMPO NO HABILITADO | H157: CAMPO NO HABILITADO | I157: CAMPO NO HABILITADO | J157: CAMPO NO HABILITADO | K157: CAMPO NO HABILITADO | L157: CAMPO NO HABILITADO | M157: CAMPO NO HABILITADO | O157: CAMPO NO HABILITADO | P157: CAMPO NO HABILITADO | Q157: CAMPO NO HABILITADO | R157: CAMPO NO HABILITADO | S157: CAMPO NO HABILITADO | T157: CAMPO NO HABILITADO | U157: CAMPO NO HABILITADO | V157: CAMPO NO HABILITADO | W157: CAMPO NO HABILITADO | X157: CAMPO NO HABILITADO | Y157: CAMPO NO HABILITADO | Z157: CAMPO NO HABILITADO
B167: CAMPO NO HABILITADO | C167: CAMPO NO HABILITADO | D167: CAMPO NO HABILITADO | E167: CAMPO NO HABILITADO | F167: CAMPO NO HABILITADO | G167: CAMPO NO HABILITADO | H167: CAMPO NO HABILITADO | I167: CAMPO NO HABILITADO | J167: CAMPO NO HABILITADO | K167: CAMPO NO HABILITADO | L167: CAMPO NO HABILITADO | M167: CAMPO NO HABILITADO | O167: CAMPO NO HABILITADO | P167: CAMPO NO HABILITADO | Q167: CAMPO NO HABILITADO | R167: CAMPO NO HABILITADO | S167: CAMPO NO HABILITADO | T167: CAMPO NO HABILITADO | U167: CAMPO NO HABILITADO | V167: CAMPO NO HABILITADO | W167: CAMPO NO HABILITADO | X167: CAMPO NO HABILITADO | Y167: CAMPO NO HABILITADO | Z167: CAMPO NO HABILITADO
B168: CAMPO NO HABILITADO | C168: CAMPO NO HABILITADO | D168: CAMPO NO HABILITADO | E168: CAMPO NO HABILITADO | F168: CAMPO NO HABILITADO | G168: CAMPO NO HABILITADO | H168: CAMPO NO HABILITADO | I168: CAMPO NO HABILITADO | J168: CAMPO NO HABILITADO | K168: CAMPO NO HABILITADO | L168: CAMPO NO HABILITADO | M168: CAMPO NO HABILITADO | O168: CAMPO NO HABILITADO | P168: CAMPO NO HABILITADO | Q168: CAMPO NO HABILITADO | R168: CAMPO NO HABILITADO | S168: CAMPO NO HABILITADO | T168: CAMPO NO HABILITADO | U168: CAMPO NO HABILITADO | V168: CAMPO NO HABILITADO | W168: CAMPO NO HABILITADO | X168: CAMPO NO HABILITADO | Y168: CAMPO NO HABILITADO | Z168: CAMPO NO HABILITADO
B178: CAMPO NO HABILITADO | C178: CAMPO NO HABILITADO | D178: CAMPO NO HABILITADO | E178: CAMPO NO HABILITADO | F178: CAMPO NO HABILITADO | G178: CAMPO NO HABILITADO | H178: CAMPO NO HABILITADO | I178: CAMPO NO HABILITADO | J178: CAMPO NO HABILITADO | K178: CAMPO NO HABILITADO | L178: CAMPO NO HABILITADO | M178: CAMPO NO HABILITADO | O178: CAMPO NO HABILITADO | P178: CAMPO NO HABILITADO | Q178: CAMPO NO HABILITADO | R178: CAMPO NO HABILITADO | S178: CAMPO NO HABILITADO | T178: CAMPO NO HABILITADO | U178: CAMPO NO HABILITADO | V178: CAMPO NO HABILITADO | W178: CAMPO NO HABILITADO | X178: CAMPO NO HABILITADO | Y178: CAMPO NO HABILITADO | Z178: CAMPO NO HABILITADO
B179: CAMPO NO HABILITADO | C179: CAMPO NO HABILITADO | D179: CAMPO NO HABILITADO | E179: CAMPO NO HABILITADO | F179: CAMPO NO HABILITADO | G179: CAMPO NO HABILITADO | H179: CAMPO NO HABILITADO | I179: CAMPO NO HABILITADO | J179: CAMPO NO HABILITADO | K179: CAMPO NO HABILITADO | L179: CAMPO NO HABILITADO | M179: CAMPO NO HABILITADO | O179: CAMPO NO HABILITADO | P179: CAMPO NO HABILITADO | Q179: CAMPO NO HABILITADO | R179: CAMPO NO HABILITADO | S179: CAMPO NO HABILITADO | T179: CAMPO NO HABILITADO | U179: CAMPO NO HABILITADO | V179: CAMPO NO HABILITADO | W179: CAMPO NO HABILITADO | X179: CAMPO NO HABILITADO | Y179: CAMPO NO HABILITADO | Z179: CAMPO NO HABILITADO
B189: CAMPO NO HABILITADO | C189: CAMPO NO HABILITADO | D189: CAMPO NO HABILITADO | E189: CAMPO NO HABILITADO | F189: CAMPO NO HABILITADO | G189: CAMPO NO HABILITADO | H189: CAMPO NO HABILITADO | I189: CAMPO NO HABILITADO | J189: CAMPO NO HABILITADO | K189: CAMPO NO HABILITADO | L189: CAMPO NO HABILITADO | M189: CAMPO NO HABILITADO | O189: CAMPO NO HABILITADO | P189: CAMPO NO HABILITADO | Q189: CAMPO NO HABILITADO | R189: CAMPO NO HABILITADO | S189: CAMPO NO HABILITADO | T189: CAMPO NO HABILITADO | U189: CAMPO NO HABILITADO | V189: CAMPO NO HABILITADO | W189: CAMPO NO HABILITADO | X189: CAMPO NO HABILITADO | Y189: CAMPO NO HABILITADO | Z189: CAMPO NO HABILITADO
B190: CAMPO NO HABILITADO | C190: CAMPO NO HABILITADO | D190: CAMPO NO HABILITADO | E190: CAMPO NO HABILITADO | F190: CAMPO NO HABILITADO | G190: CAMPO NO HABILITADO | H190: CAMPO NO HABILITADO | I190: CAMPO NO HABILITADO | J190: CAMPO NO HABILITADO | K190: CAMPO NO HABILITADO | L190: CAMPO NO HABILITADO | M190: CAMPO NO HABILITADO | O190: CAMPO NO HABILITADO | P190: CAMPO NO HABILITADO | Q190: CAMPO NO HABILITADO | R190: CAMPO NO HABILITADO | S190: CAMPO NO HABILITADO | T190: CAMPO NO HABILITADO | U190: CAMPO NO HABILITADO | V190: CAMPO NO HABILITADO | W190: CAMPO NO HABILITADO | X190: CAMPO NO HABILITADO | Y190: CAMPO NO HABILITADO | Z190: CAMPO NO HABILITADO
B200: CAMPO NO HABILITADO | C200: CAMPO NO HABILITADO | D200: CAMPO NO HABILITADO | E200: CAMPO NO HABILITADO | F200: CAMPO NO HABILITADO | G200: CAMPO NO HABILITADO | H200: CAMPO NO HABILITADO | I200: CAMPO NO HABILITADO | J200: CAMPO NO HABILITADO | K200: CAMPO NO HABILITADO | L200: CAMPO NO HABILITADO | M200: CAMPO NO HABILITADO | O200: CAMPO NO HABILITADO | P200: CAMPO NO HABILITADO | Q200: CAMPO NO HABILITADO | R200: CAMPO NO HABILITADO | S200: CAMPO NO HABILITADO | T200: CAMPO NO HABILITADO | U200: CAMPO NO HABILITADO | V200: CAMPO NO HABILITADO | W200: CAMPO NO HABILITADO | X200: CAMPO NO HABILITADO | Y200: CAMPO NO HABILITADO | Z200: CAMPO NO HABILITADO
B201: CAMPO NO HABILITADO | C201: CAMPO NO HABILITADO | D201: CAMPO NO HABILITADO | E201: CAMPO NO HABILITADO | F201: CAMPO NO HABILITADO | G201: CAMPO NO HABILITADO | H201: CAMPO NO HABILITADO | I201: CAMPO NO HABILITADO | J201: CAMPO NO HABILITADO | K201: CAMPO NO HABILITADO | L201: CAMPO NO HABILITADO | M201: CAMPO NO HABILITADO | O201: CAMPO NO HABILITADO | P201: CAMPO NO HABILITADO | Q201: CAMPO NO HABILITADO | R201: CAMPO NO HABILITADO | S201: CAMPO NO HABILITADO | T201: CAMPO NO HABILITADO | U201: CAMPO NO HABILITADO | V201: CAMPO NO HABILITADO | W201: CAMPO NO HABILITADO | X201: CAMPO NO HABILITADO | Y201: CAMPO NO HABILITADO | Z201: CAMPO NO HABILITADO
B211: CAMPO NO HABILITADO | C211: CAMPO NO HABILITADO | D211: CAMPO NO HABILITADO | E211: CAMPO NO HABILITADO | F211: CAMPO NO HABILITADO | G211: CAMPO NO HABILITADO | H211: CAMPO NO HABILITADO | I211: CAMPO NO HABILITADO | J211: CAMPO NO HABILITADO | K211: CAMPO NO HABILITADO | L211: CAMPO NO HABILITADO | M211: CAMPO NO HABILITADO | O211: CAMPO NO HABILITADO | P211: CAMPO NO HABILITADO | Q211: CAMPO NO HABILITADO | R211: CAMPO NO HABILITADO | S211: CAMPO NO HABILITADO | T211: CAMPO NO HABILITADO | U211: CAMPO NO HABILITADO | V211: CAMPO NO HABILITADO | W211: CAMPO NO HABILITADO | X211: CAMPO NO HABILITADO | Y211: CAMPO NO HABILITADO | Z211: CAMPO NO HABILITADO
B212: CAMPO NO HABILITADO | C212: CAMPO NO HABILITADO | D212: CAMPO NO HABILITADO | E212: CAMPO NO HABILITADO | F212: CAMPO NO HABILITADO | G212: CAMPO NO HABILITADO | H212: CAMPO NO HABILITADO | I212: CAMPO NO HABILITADO | J212: CAMPO NO HABILITADO | K212: CAMPO NO HABILITADO | L212: CAMPO NO HABILITADO | M212: CAMPO NO HABILITADO | O212: CAMPO NO HABILITADO | P212: CAMPO NO HABILITADO | Q212: CAMPO NO HABILITADO | R212: CAMPO NO HABILITADO | S212: CAMPO NO HABILITADO | T212: CAMPO NO HABILITADO | U212: CAMPO NO HABILITADO | V212: CAMPO NO HABILITADO | W212: CAMPO NO HABILITADO | X212: CAMPO NO HABILITADO | Y212: CAMPO NO HABILITADO | Z212: CAMPO NO HABILITADO
B222: CAMPO NO HABILITADO | C222: CAMPO NO HABILITADO | D222: CAMPO NO HABILITADO | E222: CAMPO NO HABILITADO | F222: CAMPO NO HABILITADO | G222: CAMPO NO HABILITADO | H222: CAMPO NO HABILITADO | I222: CAMPO NO HABILITADO | J222: CAMPO NO HABILITADO | K222: CAMPO NO HABILITADO | L222: CAMPO NO HABILITADO | M222: CAMPO NO HABILITADO | O222: CAMPO NO HABILITADO | P222: CAMPO NO HABILITADO | Q222: CAMPO NO HABILITADO | R222: CAMPO NO HABILITADO | S222: CAMPO NO HABILITADO | T222: CAMPO NO HABILITADO | U222: CAMPO NO HABILITADO | V222: CAMPO NO HABILITADO | W222: CAMPO NO HABILITADO | X222: CAMPO NO HABILITADO | Y222: CAMPO NO HABILITADO | Z222: CAMPO NO HABILITADO
B223: CAMPO NO HABILITADO | C223: CAMPO NO HABILITADO | D223: CAMPO NO HABILITADO | E223: CAMPO NO HABILITADO | F223: CAMPO NO HABILITADO | G223: CAMPO NO HABILITADO | H223: CAMPO NO HABILITADO | I223: CAMPO NO HABILITADO | J223: CAMPO NO HABILITADO | K223: CAMPO NO HABILITADO | L223: CAMPO NO HABILITADO | M223: CAMPO NO HABILITADO | O223: CAMPO NO HABILITADO | P223: CAMPO NO HABILITADO | Q223: CAMPO NO HABILITADO | R223: CAMPO NO HABILITADO | S223: CAMPO NO HABILITADO | T223: CAMPO NO HABILITADO | U223: CAMPO NO HABILITADO | V223: CAMPO NO HABILITADO | W223: CAMPO NO HABILITADO | X223: CAMPO NO HABILITADO | Y223: CAMPO NO HABILITADO | Z223: CAMPO NO HABILITADO
B233: CAMPO NO HABILITADO | C233: CAMPO NO HABILITADO | D233: CAMPO NO HABILITADO | E233: CAMPO NO HABILITADO | F233: CAMPO NO HABILITADO | G233: CAMPO NO HABILITADO | H233: CAMPO NO HABILITADO | I233: CAMPO NO HABILITADO | J233: CAMPO NO HABILITADO | K233: CAMPO NO HABILITADO | L233: CAMPO NO HABILITADO | M233: CAMPO NO HABILITADO | O233: CAMPO NO HABILITADO | P233: CAMPO NO HABILITADO | Q233: CAMPO NO HABILITADO | R233: CAMPO NO HABILITADO | S233: CAMPO NO HABILITADO | T233: CAMPO NO HABILITADO | U233: CAMPO NO HABILITADO | V233: CAMPO NO HABILITADO | W233: CAMPO NO HABILITADO | X233: CAMPO NO HABILITADO | Y233: CAMPO NO HABILITADO | Z233: CAMPO NO HABILITADO
B234: CAMPO NO HABILITADO | C234: CAMPO NO HABILITADO | D234: CAMPO NO HABILITADO | E234: CAMPO NO HABILITADO | F234: CAMPO NO HABILITADO | G234: CAMPO NO HABILITADO | H234: CAMPO NO HABILITADO | I234: CAMPO NO HABILITADO | J234: CAMPO NO HABILITADO | K234: CAMPO NO HABILITADO | L234: CAMPO NO HABILITADO | M234: CAMPO NO HABILITADO | O234: CAMPO NO HABILITADO | P234: CAMPO NO HABILITADO | Q234: CAMPO NO HABILITADO | R234: CAMPO NO HABILITADO | S234: CAMPO NO HABILITADO | T234: CAMPO NO HABILITADO | U234: CAMPO NO HABILITADO | V234: CAMPO NO HABILITADO | W234: CAMPO NO HABILITADO | X234: CAMPO NO HABILITADO | Y234: CAMPO NO HABILITADO | Z234: CAMPO NO HABILITADO
B244: CAMPO NO HABILITADO | C244: CAMPO NO HABILITADO | D244: CAMPO NO HABILITADO | E244: CAMPO NO HABILITADO | F244: CAMPO NO HABILITADO | G244: CAMPO NO HABILITADO | H244: CAMPO NO HABILITADO | I244: CAMPO NO HABILITADO | J244: CAMPO NO HABILITADO | K244: CAMPO NO HABILITADO | L244: CAMPO NO HABILITADO | M244: CAMPO NO HABILITADO | O244: CAMPO NO HABILITADO | P244: CAMPO NO HABILITADO | Q244: CAMPO NO HABILITADO | R244: CAMPO NO HABILITADO | S244: CAMPO NO HABILITADO | T244: CAMPO NO HABILITADO | U244: CAMPO NO HABILITADO | V244: CAMPO NO HABILITADO | W244: CAMPO NO HABILITADO | X244: CAMPO NO HABILITADO | Y244: CAMPO NO HABILITADO | Z244: CAMPO NO HABILITADO
B245: CAMPO NO HABILITADO | C245: CAMPO NO HABILITADO | D245: CAMPO NO HABILITADO | E245: CAMPO NO HABILITADO | F245: CAMPO NO HABILITADO | G245: CAMPO NO HABILITADO | H245: CAMPO NO HABILITADO | I245: CAMPO NO HABILITADO | J245: CAMPO NO HABILITADO | K245: CAMPO NO HABILITADO | L245: CAMPO NO HABILITADO | M245: CAMPO NO HABILITADO | O245: CAMPO NO HABILITADO | P245: CAMPO NO HABILITADO | Q245: CAMPO NO HABILITADO | R245: CAMPO NO HABILITADO | S245: CAMPO NO HABILITADO | T245: CAMPO NO HABILITADO | U245: CAMPO NO HABILITADO | V245: CAMPO NO HABILITADO | W245: CAMPO NO HABILITADO | X245: CAMPO NO HABILITADO | Y245: CAMPO NO HABILITADO | Z245: CAMPO NO HABILITADO
B255: CAMPO NO HABILITADO | C255: CAMPO NO HABILITADO | D255: CAMPO NO HABILITADO | E255: CAMPO NO HABILITADO | F255: CAMPO NO HABILITADO | G255: CAMPO NO HABILITADO | H255: CAMPO NO HABILITADO | I255: CAMPO NO HABILITADO | J255: CAMPO NO HABILITADO | K255: CAMPO NO HABILITADO | L255: CAMPO NO HABILITADO | M255: CAMPO NO HABILITADO | O255: CAMPO NO HABILITADO | P255: CAMPO NO HABILITADO | Q255: CAMPO NO HABILITADO | R255: CAMPO NO HABILITADO | S255: CAMPO NO HABILITADO | T255: CAMPO NO HABILITADO | U255: CAMPO NO HABILITADO | V255: CAMPO NO HABILITADO | W255: CAMPO NO HABILITADO | X255: CAMPO NO HABILITADO | Y255: CAMPO NO HABILITADO | Z255: CAMPO NO HABILITADO
B256: CAMPO NO HABILITADO | C256: CAMPO NO HABILITADO | D256: CAMPO NO HABILITADO | E256: CAMPO NO HABILITADO | F256: CAMPO NO HABILITADO | G256: CAMPO NO HABILITADO | H256: CAMPO NO HABILITADO | I256: CAMPO NO HABILITADO | J256: CAMPO NO HABILITADO | K256: CAMPO NO HABILITADO | L256: CAMPO NO HABILITADO | M256: CAMPO NO HABILITADO | O256: CAMPO NO HABILITADO | P256: CAMPO NO HABILITADO | Q256: CAMPO NO HABILITADO | R256: CAMPO NO HABILITADO | S256: CAMPO NO HABILITADO | T256: CAMPO NO HABILITADO | U256: CAMPO NO HABILITADO | V256: CAMPO NO HABILITADO | W256: CAMPO NO HABILITADO | X256: CAMPO NO HABILITADO | Y256: CAMPO NO HABILITADO | Z256: CAMPO NO HABILITADO
B266: CAMPO NO HABILITADO | C266: CAMPO NO HABILITADO | D266: CAMPO NO HABILITADO | E266: CAMPO NO HABILITADO | F266: CAMPO NO HABILITADO | G266: CAMPO NO HABILITADO | H266: CAMPO NO HABILITADO | I266: CAMPO NO HABILITADO | J266: CAMPO NO HABILITADO | K266: CAMPO NO HABILITADO | L266: CAMPO NO HABILITADO | M266: CAMPO NO HABILITADO | O266: CAMPO NO HABILITADO | P266: CAMPO NO HABILITADO | Q266: CAMPO NO HABILITADO | R266: CAMPO NO HABILITADO | S266: CAMPO NO HABILITADO | T266: CAMPO NO HABILITADO | U266: CAMPO NO HABILITADO | V266: CAMPO NO HABILITADO | W266: CAMPO NO HABILITADO | X266: CAMPO NO HABILITADO | Y266: CAMPO NO HABILITADO | Z266: CAMPO NO HABILITADO
B267: CAMPO NO HABILITADO | C267: CAMPO NO HABILITADO | D267: CAMPO NO HABILITADO | E267: CAMPO NO HABILITADO | F267: CAMPO NO HABILITADO | G267: CAMPO NO HABILITADO | H267: CAMPO NO HABILITADO | I267: CAMPO NO HABILITADO | J267: CAMPO NO HABILITADO | K267: CAMPO NO HABILITADO | L267: CAMPO NO HABILITADO | M267: CAMPO NO HABILITADO | O267: CAMPO NO HABILITADO | P267: CAMPO NO HABILITADO | Q267: CAMPO NO HABILITADO | R267: CAMPO NO HABILITADO | S267: CAMPO NO HABILITADO | T267: CAMPO NO HABILITADO | U267: CAMPO NO HABILITADO | V267: CAMPO NO HABILITADO | W267: CAMPO NO HABILITADO | X267: CAMPO NO HABILITADO | Y267: CAMPO NO HABILITADO | Z267: CAMPO NO HABILITADO
B277: CAMPO NO HABILITADO | C277: CAMPO NO HABILITADO | D277: CAMPO NO HABILITADO | E277: CAMPO NO HABILITADO | F277: CAMPO NO HABILITADO | G277: CAMPO NO HABILITADO | H277: CAMPO NO HABILITADO | I277: CAMPO NO HABILITADO | J277: CAMPO NO HABILITADO | K277: CAMPO NO HABILITADO | L277: CAMPO NO HABILITADO | M277: CAMPO NO HABILITADO | O277: CAMPO NO HABILITADO | P277: CAMPO NO HABILITADO | Q277: CAMPO NO HABILITADO | R277: CAMPO NO HABILITADO | S277: CAMPO NO HABILITADO | T277: CAMPO NO HABILITADO | U277: CAMPO NO HABILITADO | V277: CAMPO NO HABILITADO | W277: CAMPO NO HABILITADO | X277: CAMPO NO HABILITADO | Y277: CAMPO NO HABILITADO | Z277: CAMPO NO HABILITADO
B278: CAMPO NO HABILITADO | C278: CAMPO NO HABILITADO | D278: CAMPO NO HABILITADO | E278: CAMPO NO HABILITADO | F278: CAMPO NO HABILITADO | G278: CAMPO NO HABILITADO | H278: CAMPO NO HABILITADO | I278: CAMPO NO HABILITADO | J278: CAMPO NO HABILITADO | K278: CAMPO NO HABILITADO | L278: CAMPO NO HABILITADO | M278: CAMPO NO HABILITADO | O278: CAMPO NO HABILITADO | P278: CAMPO NO HABILITADO | Q278: CAMPO NO HABILITADO | R278: CAMPO NO HABILITADO | S278: CAMPO NO HABILITADO | T278: CAMPO NO HABILITADO | U278: CAMPO NO HABILITADO | V278: CAMPO NO HABILITADO | W278: CAMPO NO HABILITADO | X278: CAMPO NO HABILITADO | Y278: CAMPO NO HABILITADO | Z278: CAMPO NO HABILITADO
B288: CAMPO NO HABILITADO | C288: CAMPO NO HABILITADO | D288: CAMPO NO HABILITADO | E288: CAMPO NO HABILITADO | F288: CAMPO NO HABILITADO | G288: CAMPO NO HABILITADO | H288: CAMPO NO HABILITADO | I288: CAMPO NO HABILITADO | J288: CAMPO NO HABILITADO | K288: CAMPO NO HABILITADO | L288: CAMPO NO HABILITADO | M288: CAMPO NO HABILITADO | O288: CAMPO NO HABILITADO | P288: CAMPO NO HABILITADO | Q288: CAMPO NO HABILITADO | R288: CAMPO NO HABILITADO | S288: CAMPO NO HABILITADO | T288: CAMPO NO HABILITADO | U288: CAMPO NO HABILITADO | V288: CAMPO NO HABILITADO | W288: CAMPO NO HABILITADO | X288: CAMPO NO HABILITADO | Y288: CAMPO NO HABILITADO | Z288: CAMPO NO HABILITADO
B289: CAMPO NO HABILITADO | C289: CAMPO NO HABILITADO | D289: CAMPO NO HABILITADO | E289: CAMPO NO HABILITADO | F289: CAMPO NO HABILITADO | G289: CAMPO NO HABILITADO | H289: CAMPO NO HABILITADO | I289: CAMPO NO HABILITADO | J289: CAMPO NO HABILITADO | K289: CAMPO NO HABILITADO | L289: CAMPO NO HABILITADO | M289: CAMPO NO HABILITADO | O289: CAMPO NO HABILITADO | P289: CAMPO NO HABILITADO | Q289: CAMPO NO HABILITADO | R289: CAMPO NO HABILITADO | S289: CAMPO NO HABILITADO | T289: CAMPO NO HABILITADO | U289: CAMPO NO HABILITADO | V289: CAMPO NO HABILITADO | W289: CAMPO NO HABILITADO | X289: CAMPO NO HABILITADO | Y289: CAMPO NO HABILITADO | Z289: CAMPO NO HABILITADO
B299: CAMPO NO HABILITADO | C299: CAMPO NO HABILITADO | D299: CAMPO NO HABILITADO | E299: CAMPO NO HABILITADO | F299: CAMPO NO HABILITADO | G299: CAMPO NO HABILITADO | H299: CAMPO NO HABILITADO | I299: CAMPO NO HABILITADO | J299: CAMPO NO HABILITADO | K299: CAMPO NO HABILITADO | L299: CAMPO NO HABILITADO | M299: CAMPO NO HABILITADO | O299: CAMPO NO HABILITADO | P299: CAMPO NO HABILITADO | Q299: CAMPO NO HABILITADO | R299: CAMPO NO HABILITADO | S299: CAMPO NO HABILITADO | T299: CAMPO NO HABILITADO | U299: CAMPO NO HABILITADO | V299: CAMPO NO HABILITADO | W299: CAMPO NO HABILITADO | X299: CAMPO NO HABILITADO | Y299: CAMPO NO HABILITADO | Z299: CAMPO NO HABILITADO
B300: CAMPO NO HABILITADO | C300: CAMPO NO HABILITADO | D300: CAMPO NO HABILITADO | E300: CAMPO NO HABILITADO | F300: CAMPO NO HABILITADO | G300: CAMPO NO HABILITADO | H300: CAMPO NO HABILITADO | I300: CAMPO NO HABILITADO | J300: CAMPO NO HABILITADO | K300: CAMPO NO HABILITADO | L300: CAMPO NO HABILITADO | M300: CAMPO NO HABILITADO | O300: CAMPO NO HABILITADO | P300: CAMPO NO HABILITADO | Q300: CAMPO NO HABILITADO | R300: CAMPO NO HABILITADO | S300: CAMPO NO HABILITADO | T300: CAMPO NO HABILITADO | U300: CAMPO NO HABILITADO | V300: CAMPO NO HABILITADO | W300: CAMPO NO HABILITADO | X300: CAMPO NO HABILITADO | Y300: CAMPO NO HABILITADO | Z300: CAMPO NO HABILITADO
B310: CAMPO NO HABILITADO | C310: CAMPO NO HABILITADO | D310: CAMPO NO HABILITADO | E310: CAMPO NO HABILITADO | F310: CAMPO NO HABILITADO | G310: CAMPO NO HABILITADO | H310: CAMPO NO HABILITADO | I310: CAMPO NO HABILITADO | J310: CAMPO NO HABILITADO | K310: CAMPO NO HABILITADO | L310: CAMPO NO HABILITADO | M310: CAMPO NO HABILITADO | O310: CAMPO NO HABILITADO | P310: CAMPO NO HABILITADO | Q310: CAMPO NO HABILITADO | R310: CAMPO NO HABILITADO | S310: CAMPO NO HABILITADO | T310: CAMPO NO HABILITADO | U310: CAMPO NO HABILITADO | V310: CAMPO NO HABILITADO | W310: CAMPO NO HABILITADO | X310: CAMPO NO HABILITADO | Y310: CAMPO NO HABILITADO | Z310: CAMPO NO HABILITADO
B311: CAMPO NO HABILITADO | C311: CAMPO NO HABILITADO | D311: CAMPO NO HABILITADO | E311: CAMPO NO HABILITADO | F311: CAMPO NO HABILITADO | G311: CAMPO NO HABILITADO | H311: CAMPO NO HABILITADO | I311: CAMPO NO HABILITADO | J311: CAMPO NO HABILITADO | K311: CAMPO NO HABILITADO | L311: CAMPO NO HABILITADO | M311: CAMPO NO HABILITADO | O311: CAMPO NO HABILITADO | P311: CAMPO NO HABILITADO | Q311: CAMPO NO HABILITADO | R311: CAMPO NO HABILITADO | S311: CAMPO NO HABILITADO | T311: CAMPO NO HABILITADO | U311: CAMPO NO HABILITADO | V311: CAMPO NO HABILITADO | W311: CAMPO NO HABILITADO | X311: CAMPO NO HABILITADO | Y311: CAMPO NO HABILITADO | Z311: CAMPO NO HABILITADO
B321: CAMPO NO HABILITADO | C321: CAMPO NO HABILITADO | D321: CAMPO NO HABILITADO | E321: CAMPO NO HABILITADO | F321: CAMPO NO HABILITADO | G321: CAMPO NO HABILITADO | H321: CAMPO NO HABILITADO | I321: CAMPO NO HABILITADO | J321: CAMPO NO HABILITADO | K321: CAMPO NO HABILITADO | L321: CAMPO NO HABILITADO | M321: CAMPO NO HABILITADO | O321: CAMPO NO HABILITADO | P321: CAMPO NO HABILITADO | Q321: CAMPO NO HABILITADO | R321: CAMPO NO HABILITADO | S321: CAMPO NO HABILITADO | T321: CAMPO NO HABILITADO | U321: CAMPO NO HABILITADO | V321: CAMPO NO HABILITADO | W321: CAMPO NO HABILITADO | X321: CAMPO NO HABILITADO | Y321: CAMPO NO HABILITADO | Z321: CAMPO NO HABILITADO
B322: CAMPO NO HABILITADO | C322: CAMPO NO HABILITADO | D322: CAMPO NO HABILITADO | E322: CAMPO NO HABILITADO | F322: CAMPO NO HABILITADO | G322: CAMPO NO HABILITADO | H322: CAMPO NO HABILITADO | I322: CAMPO NO HABILITADO | J322: CAMPO NO HABILITADO | K322: CAMPO NO HABILITADO | L322: CAMPO NO HABILITADO | M322: CAMPO NO HABILITADO | O322: CAMPO NO HABILITADO | P322: CAMPO NO HABILITADO | Q322: CAMPO NO HABILITADO | R322: CAMPO NO HABILITADO | S322: CAMPO NO HABILITADO | T322: CAMPO NO HABILITADO | U322: CAMPO NO HABILITADO | V322: CAMPO NO HABILITADO | W322: CAMPO NO HABILITADO | X322: CAMPO NO HABILITADO | Y322: CAMPO NO HABILITADO | Z322: CAMPO NO HABILITADO
B332: CAMPO NO HABILITADO | C332: CAMPO NO HABILITADO | D332: CAMPO NO HABILITADO | E332: CAMPO NO HABILITADO | F332: CAMPO NO HABILITADO | G332: CAMPO NO HABILITADO | H332: CAMPO NO HABILITADO | I332: CAMPO NO HABILITADO | J332: CAMPO NO HABILITADO | K332: CAMPO NO HABILITADO | L332: CAMPO NO HABILITADO | M332: CAMPO NO HABILITADO | O332: CAMPO NO HABILITADO | P332: CAMPO NO HABILITADO | Q332: CAMPO NO HABILITADO | R332: CAMPO NO HABILITADO | S332: CAMPO NO HABILITADO | T332: CAMPO NO HABILITADO | U332: CAMPO NO HABILITADO | V332: CAMPO NO HABILITADO | W332: CAMPO NO HABILITADO | X332: CAMPO NO HABILITADO | Y332: CAMPO NO HABILITADO | Z332: CAMPO NO HABILITADO
B333: CAMPO NO HABILITADO | C333: CAMPO NO HABILITADO | D333: CAMPO NO HABILITADO | E333: CAMPO NO HABILITADO | F333: CAMPO NO HABILITADO | G333: CAMPO NO HABILITADO | H333: CAMPO NO HABILITADO | I333: CAMPO NO HABILITADO | J333: CAMPO NO HABILITADO | K333: CAMPO NO HABILITADO | L333: CAMPO NO HABILITADO | M333: CAMPO NO HABILITADO | O333: CAMPO NO HABILITADO | P333: CAMPO NO HABILITADO | Q333: CAMPO NO HABILITADO | R333: CAMPO NO HABILITADO | S333: CAMPO NO HABILITADO | T333: CAMPO NO HABILITADO | U333: CAMPO NO HABILITADO | V333: CAMPO NO HABILITADO | W333: CAMPO NO HABILITADO | X333: CAMPO NO HABILITADO | Y333: CAMPO NO HABILITADO | Z333: CAMPO NO HABILITADO
B343: CAMPO NO HABILITADO | C343: CAMPO NO HABILITADO | D343: CAMPO NO HABILITADO | E343: CAMPO NO HABILITADO | F343: CAMPO NO HABILITADO | G343: CAMPO NO HABILITADO | H343: CAMPO NO HABILITADO | I343: CAMPO NO HABILITADO | J343: CAMPO NO HABILITADO | K343: CAMPO NO HABILITADO | L343: CAMPO NO HABILITADO | M343: CAMPO NO HABILITADO | O343: CAMPO NO HABILITADO | P343: CAMPO NO HABILITADO | Q343: CAMPO NO HABILITADO | R343: CAMPO NO HABILITADO | S343: CAMPO NO HABILITADO | T343: CAMPO NO HABILITADO | U343: CAMPO NO HABILITADO | V343: CAMPO NO HABILITADO | W343: CAMPO NO HABILITADO | X343: CAMPO NO HABILITADO | Y343: CAMPO NO HABILITADO | Z343: CAMPO NO HABILITADO
B344: CAMPO NO HABILITADO | C344: CAMPO NO HABILITADO | D344: CAMPO NO HABILITADO | E344: CAMPO NO HABILITADO | F344: CAMPO NO HABILITADO | G344: CAMPO NO HABILITADO | H344: CAMPO NO HABILITADO | I344: CAMPO NO HABILITADO | J344: CAMPO NO HABILITADO | K344: CAMPO NO HABILITADO | L344: CAMPO NO HABILITADO | M344: CAMPO NO HABILITADO | O344: CAMPO NO HABILITADO | P344: CAMPO NO HABILITADO | Q344: CAMPO NO HABILITADO | R344: CAMPO NO HABILITADO | S344: CAMPO NO HABILITADO | T344: CAMPO NO HABILITADO | U344: CAMPO NO HABILITADO | V344: CAMPO NO HABILITADO | W344: CAMPO NO HABILITADO | X344: CAMPO NO HABILITADO | Y344: CAMPO NO HABILITADO | Z344: CAMPO NO HABILITADO
B354: CAMPO NO HABILITADO | C354: CAMPO NO HABILITADO | D354: CAMPO NO HABILITADO | E354: CAMPO NO HABILITADO | F354: CAMPO NO HABILITADO | G354: CAMPO NO HABILITADO | H354: CAMPO NO HABILITADO | I354: CAMPO NO HABILITADO | J354: CAMPO NO HABILITADO | K354: CAMPO NO HABILITADO | L354: CAMPO NO HABILITADO | M354: CAMPO NO HABILITADO | O354: CAMPO NO HABILITADO | P354: CAMPO NO HABILITADO | Q354: CAMPO NO HABILITADO | R354: CAMPO NO HABILITADO | S354: CAMPO NO HABILITADO | T354: CAMPO NO HABILITADO | U354: CAMPO NO HABILITADO | V354: CAMPO NO HABILITADO | W354: CAMPO NO HABILITADO | X354: CAMPO NO HABILITADO | Y354: CAMPO NO HABILITADO | Z354: CAMPO NO HABILITADO
B355: CAMPO NO HABILITADO | C355: CAMPO NO HABILITADO | D355: CAMPO NO HABILITADO | E355: CAMPO NO HABILITADO | F355: CAMPO NO HABILITADO | G355: CAMPO NO HABILITADO | H355: CAMPO NO HABILITADO | I355: CAMPO NO HABILITADO | J355: CAMPO NO HABILITADO | K355: CAMPO NO HABILITADO | L355: CAMPO NO HABILITADO | M355: CAMPO NO HABILITADO | O355: CAMPO NO HABILITADO | P355: CAMPO NO HABILITADO | Q355: CAMPO NO HABILITADO | R355: CAMPO NO HABILITADO | S355: CAMPO NO HABILITADO | T355: CAMPO NO HABILITADO | U355: CAMPO NO HABILITADO | V355: CAMPO NO HABILITADO | W355: CAMPO NO HABILITADO | X355: CAMPO NO HABILITADO | Y355: CAMPO NO HABILITADO | Z355: CAMPO NO HABILITADO
B365: CAMPO NO HABILITADO | C365: CAMPO NO HABILITADO | D365: CAMPO NO HABILITADO | E365: CAMPO NO HABILITADO | F365: CAMPO NO HABILITADO | G365: CAMPO NO HABILITADO | H365: CAMPO NO HABILITADO | I365: CAMPO NO HABILITADO | J365: CAMPO NO HABILITADO | K365: CAMPO NO HABILITADO | L365: CAMPO NO HABILITADO | M365: CAMPO NO HABILITADO | O365: CAMPO NO HABILITADO | P365: CAMPO NO HABILITADO | Q365: CAMPO NO HABILITADO | R365: CAMPO NO HABILITADO | S365: CAMPO NO HABILITADO | T365: CAMPO NO HABILITADO | U365: CAMPO NO HABILITADO | V365: CAMPO NO HABILITADO | W365: CAMPO NO HABILITADO | X365: CAMPO NO HABILITADO | Y365: CAMPO NO HABILITADO | Z365: CAMPO NO HABILITADO
B366: CAMPO NO HABILITADO | C366: CAMPO NO HABILITADO | D366: CAMPO NO HABILITADO | E366: CAMPO NO HABILITADO | F366: CAMPO NO HABILITADO | G366: CAMPO NO HABILITADO | H366: CAMPO NO HABILITADO | I366: CAMPO NO HABILITADO | J366: CAMPO NO HABILITADO | K366: CAMPO NO HABILITADO | L366: CAMPO NO HABILITADO | M366: CAMPO NO HABILITADO | O366: CAMPO NO HABILITADO | P366: CAMPO NO HABILITADO | Q366: CAMPO NO HABILITADO | R366: CAMPO NO HABILITADO | S366: CAMPO NO HABILITADO | T366: CAMPO NO HABILITADO | U366: CAMPO NO HABILITADO | V366: CAMPO NO HABILITADO | W366: CAMPO NO HABILITADO | X366: CAMPO NO HABILITADO | Y366: CAMPO NO HABILITADO | Z366: CAMPO NO HABILITADO
B376: CAMPO NO HABILITADO | C376: CAMPO NO HABILITADO | D376: CAMPO NO HABILITADO | E376: CAMPO NO HABILITADO | F376: CAMPO NO HABILITADO | G376: CAMPO NO HABILITADO | H376: CAMPO NO HABILITADO | I376: CAMPO NO HABILITADO | J376: CAMPO NO HABILITADO | K376: CAMPO NO HABILITADO | L376: CAMPO NO HABILITADO | M376: CAMPO NO HABILITADO | O376: CAMPO NO HABILITADO | P376: CAMPO NO HABILITADO | Q376: CAMPO NO HABILITADO | R376: CAMPO NO HABILITADO | S376: CAMPO NO HABILITADO | T376: CAMPO NO HABILITADO | U376: CAMPO NO HABILITADO | V376: CAMPO NO HABILITADO | W376: CAMPO NO HABILITADO | X376: CAMPO NO HABILITADO | Y376: CAMPO NO HABILITADO | Z376: CAMPO NO HABILITADO
B377: CAMPO NO HABILITADO | C377: CAMPO NO HABILITADO | D377: CAMPO NO HABILITADO | E377: CAMPO NO HABILITADO | F377: CAMPO NO HABILITADO | G377: CAMPO NO HABILITADO | H377: CAMPO NO HABILITADO | I377: CAMPO NO HABILITADO | J377: CAMPO NO HABILITADO | K377: CAMPO NO HABILITADO | L377: CAMPO NO HABILITADO | M377: CAMPO NO HABILITADO | O377: CAMPO NO HABILITADO | P377: CAMPO NO HABILITADO | Q377: CAMPO NO HABILITADO | R377: CAMPO NO HABILITADO | S377: CAMPO NO HABILITADO | T377: CAMPO NO HABILITADO | U377: CAMPO NO HABILITADO | V377: CAMPO NO HABILITADO | W377: CAMPO NO HABILITADO | X377: CAMPO NO HABILITADO | Y377: CAMPO NO HABILITADO | Z377: CAMPO NO HABILITADO
B387: CAMPO NO HABILITADO | C387: CAMPO NO HABILITADO | D387: CAMPO NO HABILITADO | E387: CAMPO NO HABILITADO | F387: CAMPO NO HABILITADO | G387: CAMPO NO HABILITADO | H387: CAMPO NO HABILITADO | I387: CAMPO NO HABILITADO | J387: CAMPO NO HABILITADO | K387: CAMPO NO HABILITADO | L387: CAMPO NO HABILITADO | M387: CAMPO NO HABILITADO | O387: CAMPO NO HABILITADO | P387: CAMPO NO HABILITADO | Q387: CAMPO NO HABILITADO | R387: CAMPO NO HABILITADO | S387: CAMPO NO HABILITADO | T387: CAMPO NO HABILITADO | U387: CAMPO NO HABILITADO | V387: CAMPO NO HABILITADO | W387: CAMPO NO HABILITADO | X387: CAMPO NO HABILITADO | Y387: CAMPO NO HABILITADO | Z387: CAMPO NO HABILITADO
B388: CAMPO NO HABILITADO | C388: CAMPO NO HABILITADO | D388: CAMPO NO HABILITADO | E388: CAMPO NO HABILITADO | F388: CAMPO NO HABILITADO | G388: CAMPO NO HABILITADO | H388: CAMPO NO HABILITADO | I388: CAMPO NO HABILITADO | J388: CAMPO NO HABILITADO | K388: CAMPO NO HABILITADO | L388: CAMPO NO HABILITADO | M388: CAMPO NO HABILITADO | O388: CAMPO NO HABILITADO | P388: CAMPO NO HABILITADO | Q388: CAMPO NO HABILITADO | R388: CAMPO NO HABILITADO | S388: CAMPO NO HABILITADO | T388: CAMPO NO HABILITADO | U388: CAMPO NO HABILITADO | V388: CAMPO NO HABILITADO | W388: CAMPO NO HABILITADO | X388: CAMPO NO HABILITADO | Y388: CAMPO NO HABILITADO | Z388: CAMPO NO HABILITADO
B398: CAMPO NO HABILITADO | C398: CAMPO NO HABILITADO | D398: CAMPO NO HABILITADO | E398: CAMPO NO HABILITADO | F398: CAMPO NO HABILITADO | G398: CAMPO NO HABILITADO | H398: CAMPO NO HABILITADO | I398: CAMPO NO HABILITADO | J398: CAMPO NO HABILITADO | K398: CAMPO NO HABILITADO | L398: CAMPO NO HABILITADO | M398: CAMPO NO HABILITADO | O398: CAMPO NO HABILITADO | P398: CAMPO NO HABILITADO | Q398: CAMPO NO HABILITADO | R398: CAMPO NO HABILITADO | S398: CAMPO NO HABILITADO | T398: CAMPO NO HABILITADO | U398: CAMPO NO HABILITADO | V398: CAMPO NO HABILITADO | W398: CAMPO NO HABILITADO | X398: CAMPO NO HABILITADO | Y398: CAMPO NO HABILITADO | Z398: CAMPO NO HABILITADO
B399: CAMPO NO HABILITADO | C399: CAMPO NO HABILITADO | D399: CAMPO NO HABILITADO | E399: CAMPO NO HABILITADO | F399: CAMPO NO HABILITADO | G399: CAMPO NO HABILITADO | H399: CAMPO NO HABILITADO | I399: CAMPO NO HABILITADO | J399: CAMPO NO HABILITADO | K399: CAMPO NO HABILITADO | L399: CAMPO NO HABILITADO | M399: CAMPO NO HABILITADO | O399: CAMPO NO HABILITADO | P399: CAMPO NO HABILITADO | Q399: CAMPO NO HABILITADO | R399: CAMPO NO HABILITADO | S399: CAMPO NO HABILITADO | T399: CAMPO NO HABILITADO | U399: CAMPO NO HABILITADO | V399: CAMPO NO HABILITADO | W399: CAMPO NO HABILITADO | X399: CAMPO NO HABILITADO | Y399: CAMPO NO HABILITADO | Z399: CAMPO NO HABILITADO
B409: CAMPO NO HABILITADO | C409: CAMPO NO HABILITADO | D409: CAMPO NO HABILITADO | E409: CAMPO NO HABILITADO | F409: CAMPO NO HABILITADO | G409: CAMPO NO HABILITADO | H409: CAMPO NO HABILITADO | I409: CAMPO NO HABILITADO | J409: CAMPO NO HABILITADO | K409: CAMPO NO HABILITADO | L409: CAMPO NO HABILITADO | M409: CAMPO NO HABILITADO | O409: CAMPO NO HABILITADO | P409: CAMPO NO HABILITADO | Q409: CAMPO NO HABILITADO | R409: CAMPO NO HABILITADO | S409: CAMPO NO HABILITADO | T409: CAMPO NO HABILITADO | U409: CAMPO NO HABILITADO | V409: CAMPO NO HABILITADO | W409: CAMPO NO HABILITADO | X409: CAMPO NO HABILITADO | Y409: CAMPO NO HABILITADO | Z409: CAMPO NO HABILITADO
B410: CAMPO NO HABILITADO | C410: CAMPO NO HABILITADO | D410: CAMPO NO HABILITADO | E410: CAMPO NO HABILITADO | F410: CAMPO NO HABILITADO | G410: CAMPO NO HABILITADO | H410: CAMPO NO HABILITADO | I410: CAMPO NO HABILITADO | J410: CAMPO NO HABILITADO | K410: CAMPO NO HABILITADO | L410: CAMPO NO HABILITADO | M410: CAMPO NO HABILITADO | O410: CAMPO NO HABILITADO | P410: CAMPO NO HABILITADO | Q410: CAMPO NO HABILITADO | R410: CAMPO NO HABILITADO | S410: CAMPO NO HABILITADO | T410: CAMPO NO HABILITADO | U410: CAMPO NO HABILITADO | V410: CAMPO NO HABILITADO | W410: CAMPO NO HABILITADO | X410: CAMPO NO HABILITADO | Y410: CAMPO NO HABILITADO | Z410: CAMPO NO HABILITADO
B420: CAMPO NO HABILITADO | C420: CAMPO NO HABILITADO | D420: CAMPO NO HABILITADO | E420: CAMPO NO HABILITADO | F420: CAMPO NO HABILITADO | G420: CAMPO NO HABILITADO | H420: CAMPO NO HABILITADO | I420: CAMPO NO HABILITADO | J420: CAMPO NO HABILITADO | K420: CAMPO NO HABILITADO | L420: CAMPO NO HABILITADO | M420: CAMPO NO HABILITADO | O420: CAMPO NO HABILITADO | P420: CAMPO NO HABILITADO | Q420: CAMPO NO HABILITADO | R420: CAMPO NO HABILITADO | S420: CAMPO NO HABILITADO | T420: CAMPO NO HABILITADO | U420: CAMPO NO HABILITADO | V420: CAMPO NO HABILITADO | W420: CAMPO NO HABILITADO | X420: CAMPO NO HABILITADO | Y420: CAMPO NO HABILITADO | Z420: CAMPO NO HABILITADO
B421: CAMPO NO HABILITADO | C421: CAMPO NO HABILITADO | D421: CAMPO NO HABILITADO | E421: CAMPO NO HABILITADO | F421: CAMPO NO HABILITADO | G421: CAMPO NO HABILITADO | H421: CAMPO NO HABILITADO | I421: CAMPO NO HABILITADO | J421: CAMPO NO HABILITADO | K421: CAMPO NO HABILITADO | L421: CAMPO NO HABILITADO | M421: CAMPO NO HABILITADO | O421: CAMPO NO HABILITADO | P421: CAMPO NO HABILITADO | Q421: CAMPO NO HABILITADO | R421: CAMPO NO HABILITADO | S421: CAMPO NO HABILITADO | T421: CAMPO NO HABILITADO | U421: CAMPO NO HABILITADO | V421: CAMPO NO HABILITADO | W421: CAMPO NO HABILITADO | X421: CAMPO NO HABILITADO | Y421: CAMPO NO HABILITADO | Z421: CAMPO NO HABILITADO
B431: CAMPO NO HABILITADO | C431: CAMPO NO HABILITADO | D431: CAMPO NO HABILITADO | E431: CAMPO NO HABILITADO | F431: CAMPO NO HABILITADO | G431: CAMPO NO HABILITADO | H431: CAMPO NO HABILITADO | I431: CAMPO NO HABILITADO | J431: CAMPO NO HABILITADO | K431: CAMPO NO HABILITADO | L431: CAMPO NO HABILITADO | M431: CAMPO NO HABILITADO | O431: CAMPO NO HABILITADO | P431: CAMPO NO HABILITADO | Q431: CAMPO NO HABILITADO | R431: CAMPO NO HABILITADO | S431: CAMPO NO HABILITADO | T431: CAMPO NO HABILITADO | U431: CAMPO NO HABILITADO | V431: CAMPO NO HABILITADO | W431: CAMPO NO HABILITADO | X431: CAMPO NO HABILITADO | Y431: CAMPO NO HABILITADO | Z431: CAMPO NO HABILITADO
B432: CAMPO NO HABILITADO | C432: CAMPO NO HABILITADO | D432: CAMPO NO HABILITADO | E432: CAMPO NO HABILITADO | F432: CAMPO NO HABILITADO | G432: CAMPO NO HABILITADO | H432: CAMPO NO HABILITADO | I432: CAMPO NO HABILITADO | J432: CAMPO NO HABILITADO | K432: CAMPO NO HABILITADO | L432: CAMPO NO HABILITADO | M432: CAMPO NO HABILITADO | O432: CAMPO NO HABILITADO | P432: CAMPO NO HABILITADO | Q432: CAMPO NO HABILITADO | R432: CAMPO NO HABILITADO | S432: CAMPO NO HABILITADO | T432: CAMPO NO HABILITADO | U432: CAMPO NO HABILITADO | V432: CAMPO NO HABILITADO | W432: CAMPO NO HABILITADO | X432: CAMPO NO HABILITADO | Y432: CAMPO NO HABILITADO | Z432: CAMPO NO HABILITADO
B442: CAMPO NO HABILITADO | C442: CAMPO NO HABILITADO | D442: CAMPO NO HABILITADO | E442: CAMPO NO HABILITADO | F442: CAMPO NO HABILITADO | G442: CAMPO NO HABILITADO | H442: CAMPO NO HABILITADO | I442: CAMPO NO HABILITADO | J442: CAMPO NO HABILITADO | K442: CAMPO NO HABILITADO | L442: CAMPO NO HABILITADO | M442: CAMPO NO HABILITADO | O442: CAMPO NO HABILITADO | P442: CAMPO NO HABILITADO | Q442: CAMPO NO HABILITADO | R442: CAMPO NO HABILITADO | S442: CAMPO NO HABILITADO | T442: CAMPO NO HABILITADO | U442: CAMPO NO HABILITADO | V442: CAMPO NO HABILITADO | W442: CAMPO NO HABILITADO | X442: CAMPO NO HABILITADO | Y442: CAMPO NO HABILITADO | Z442: CAMPO NO HABILITADO
B443: CAMPO NO HABILITADO | C443: CAMPO NO HABILITADO | D443: CAMPO NO HABILITADO | E443: CAMPO NO HABILITADO | F443: CAMPO NO HABILITADO | G443: CAMPO NO HABILITADO | H443: CAMPO NO HABILITADO | I443: CAMPO NO HABILITADO | J443: CAMPO NO HABILITADO | K443: CAMPO NO HABILITADO | L443: CAMPO NO HABILITADO | M443: CAMPO NO HABILITADO | O443: CAMPO NO HABILITADO | P443: CAMPO NO HABILITADO | Q443: CAMPO NO HABILITADO | R443: CAMPO NO HABILITADO | S443: CAMPO NO HABILITADO | T443: CAMPO NO HABILITADO | U443: CAMPO NO HABILITADO | V443: CAMPO NO HABILITADO | W443: CAMPO NO HABILITADO | X443: CAMPO NO HABILITADO | Y443: CAMPO NO HABILITADO | Z443: CAMPO NO HABILITADO
B453: CAMPO NO HABILITADO | C453: CAMPO NO HABILITADO | D453: CAMPO NO HABILITADO | E453: CAMPO NO HABILITADO | F453: CAMPO NO HABILITADO | G453: CAMPO NO HABILITADO | H453: CAMPO NO HABILITADO | I453: CAMPO NO HABILITADO | J453: CAMPO NO HABILITADO | K453: CAMPO NO HABILITADO | L453: CAMPO NO HABILITADO | M453: CAMPO NO HABILITADO | O453: CAMPO NO HABILITADO | P453: CAMPO NO HABILITADO | Q453: CAMPO NO HABILITADO | R453: CAMPO NO HABILITADO | S453: CAMPO NO HABILITADO | T453: CAMPO NO HABILITADO | U453: CAMPO NO HABILITADO | V453: CAMPO NO HABILITADO | W453: CAMPO NO HABILITADO | X453: CAMPO NO HABILITADO | Y453: CAMPO NO HABILITADO | Z453: CAMPO NO HABILITADO
B454: CAMPO NO HABILITADO | C454: CAMPO NO HABILITADO | D454: CAMPO NO HABILITADO | E454: CAMPO NO HABILITADO | F454: CAMPO NO HABILITADO | G454: CAMPO NO HABILITADO | H454: CAMPO NO HABILITADO | I454: CAMPO NO HABILITADO | J454: CAMPO NO HABILITADO | K454: CAMPO NO HABILITADO | L454: CAMPO NO HABILITADO | M454: CAMPO NO HABILITADO | O454: CAMPO NO HABILITADO | P454: CAMPO NO HABILITADO | Q454: CAMPO NO HABILITADO | R454: CAMPO NO HABILITADO | S454: CAMPO NO HABILITADO | T454: CAMPO NO HABILITADO | U454: CAMPO NO HABILITADO | V454: CAMPO NO HABILITADO | W454: CAMPO NO HABILITADO | X454: CAMPO NO HABILITADO | Y454: CAMPO NO HABILITADO | Z454: CAMPO NO HABILITADO
B464: CAMPO NO HABILITADO | C464: CAMPO NO HABILITADO | D464: CAMPO NO HABILITADO | E464: CAMPO NO HABILITADO | F464: CAMPO NO HABILITADO | G464: CAMPO NO HABILITADO | H464: CAMPO NO HABILITADO | I464: CAMPO NO HABILITADO | J464: CAMPO NO HABILITADO | K464: CAMPO NO HABILITADO | L464: CAMPO NO HABILITADO | M464: CAMPO NO HABILITADO | O464: CAMPO NO HABILITADO | P464: CAMPO NO HABILITADO | Q464: CAMPO NO HABILITADO | R464: CAMPO NO HABILITADO | S464: CAMPO NO HABILITADO | T464: CAMPO NO HABILITADO | U464: CAMPO NO HABILITADO | V464: CAMPO NO HABILITADO | W464: CAMPO NO HABILITADO | X464: CAMPO NO HABILITADO | Y464: CAMPO NO HABILITADO | Z464: CAMPO NO HABILITADO
B465: CAMPO NO HABILITADO | C465: CAMPO NO HABILITADO | D465: CAMPO NO HABILITADO | E465: CAMPO NO HABILITADO | F465: CAMPO NO HABILITADO | G465: CAMPO NO HABILITADO | H465: CAMPO NO HABILITADO | I465: CAMPO NO HABILITADO | J465: CAMPO NO HABILITADO | K465: CAMPO NO HABILITADO | L465: CAMPO NO HABILITADO | M465: CAMPO NO HABILITADO | O465: CAMPO NO HABILITADO | P465: CAMPO NO HABILITADO | Q465: CAMPO NO HABILITADO | R465: CAMPO NO HABILITADO | S465: CAMPO NO HABILITADO | T465: CAMPO NO HABILITADO | U465: CAMPO NO HABILITADO | V465: CAMPO NO HABILITADO | W465: CAMPO NO HABILITADO | X465: CAMPO NO HABILITADO | Y465: CAMPO NO HABILITADO | Z465: CAMPO NO HABILITADO
B475: CAMPO NO HABILITADO | C475: CAMPO NO HABILITADO | D475: CAMPO NO HABILITADO | E475: CAMPO NO HABILITADO | F475: CAMPO NO HABILITADO | G475: CAMPO NO HABILITADO | H475: CAMPO NO HABILITADO | I475: CAMPO NO HABILITADO | J475: CAMPO NO HABILITADO | K475: CAMPO NO HABILITADO | L475: CAMPO NO HABILITADO | M475: CAMPO NO HABILITADO | O475: CAMPO NO HABILITADO | P475: CAMPO NO HABILITADO | Q475: CAMPO NO HABILITADO | R475: CAMPO NO HABILITADO | S475: CAMPO NO HABILITADO | T475: CAMPO NO HABILITADO | U475: CAMPO NO HABILITADO | V475: CAMPO NO HABILITADO | W475: CAMPO NO HABILITADO | X475: CAMPO NO HABILITADO | Y475: CAMPO NO HABILITADO | Z475: CAMPO NO HABILITADO
B476: CAMPO NO HABILITADO | C476: CAMPO NO HABILITADO | D476: CAMPO NO HABILITADO | E476: CAMPO NO HABILITADO | F476: CAMPO NO HABILITADO | G476: CAMPO NO HABILITADO | H476: CAMPO NO HABILITADO | I476: CAMPO NO HABILITADO | J476: CAMPO NO HABILITADO | K476: CAMPO NO HABILITADO | L476: CAMPO NO HABILITADO | M476: CAMPO NO HABILITADO | O476: CAMPO NO HABILITADO | P476: CAMPO NO HABILITADO | Q476: CAMPO NO HABILITADO | R476: CAMPO NO HABILITADO | S476: CAMPO NO HABILITADO | T476: CAMPO NO HABILITADO | U476: CAMPO NO HABILITADO | V476: CAMPO NO HABILITADO | W476: CAMPO NO HABILITADO | X476: CAMPO NO HABILITADO | Y476: CAMPO NO HABILITADO | Z476: CAMPO NO HABILITADO
B486: CAMPO NO HABILITADO | C486: CAMPO NO HABILITADO | D486: CAMPO NO HABILITADO | E486: CAMPO NO HABILITADO | F486: CAMPO NO HABILITADO | G486: CAMPO NO HABILITADO | H486: CAMPO NO HABILITADO | I486: CAMPO NO HABILITADO | J486: CAMPO NO HABILITADO | K486: CAMPO NO HABILITADO | L486: CAMPO NO HABILITADO | M486: CAMPO NO HABILITADO | O486: CAMPO NO HABILITADO | P486: CAMPO NO HABILITADO | Q486: CAMPO NO HABILITADO | R486: CAMPO NO HABILITADO | S486: CAMPO NO HABILITADO | T486: CAMPO NO HABILITADO | U486: CAMPO NO HABILITADO | V486: CAMPO NO HABILITADO | W486: CAMPO NO HABILITADO | X486: CAMPO NO HABILITADO | Y486: CAMPO NO HABILITADO | Z486: CAMPO NO HABILITADO
B487: CAMPO NO HABILITADO | C487: CAMPO NO HABILITADO | D487: CAMPO NO HABILITADO | E487: CAMPO NO HABILITADO | F487: CAMPO NO HABILITADO | G487: CAMPO NO HABILITADO | H487: CAMPO NO HABILITADO | I487: CAMPO NO HABILITADO | J487: CAMPO NO HABILITADO | K487: CAMPO NO HABILITADO | L487: CAMPO NO HABILITADO | M487: CAMPO NO HABILITADO | O487: CAMPO NO HABILITADO | P487: CAMPO NO HABILITADO | Q487: CAMPO NO HABILITADO | R487: CAMPO NO HABILITADO | S487: CAMPO NO HABILITADO | T487: CAMPO NO HABILITADO | U487: CAMPO NO HABILITADO | V487: CAMPO NO HABILITADO | W487: CAMPO NO HABILITADO | X487: CAMPO NO HABILITADO | Y487: CAMPO NO HABILITADO | Z487: CAMPO NO HABILITADO

Sheet Criterio1 (hidden)
B2: Valor por Dinero
B4: Obra Pública Tradicional (OPT) | O4: OPT (Etapa de Construcción) + APP (Etapa de Operación y Mantenimiento)
HE12: 5 | HF12: =IF(HE12<9,10-HE12,IF(HE12=9,1,1/(HE12-8))) -> 5
B15: Obra Pública Tradicional (OPT) | O15: Asociación Pública-Privada (APP)
HE23: 9 | HF23: =IF(HE23<9,10-HE23,IF(HE23=9,1,1/(HE23-8))) -> 1
B26: OPT (Etapa de Construcción) + APP (Etapa de Operación y Mantenimiento) | O26: Asociación Pública-Privada (APP)
B28: CAMPO NO HABILITADO | O28: CAMPO NO HABILITADO
HE34: 12 | HF34: =IF(HE34<9,10-HE34,IF(HE34=9,1,1/(HE34-8))) -> 0.25

Sheet Criterio2 (hidden)
B2: Consideraciones Políticas
B4: Obra Pública Tradicional (OPT) | O4: OPT (Etapa de Construcción) + APP (Etapa de Operación y Mantenimiento)
HE12: 5 | HF12: =IF(HE12<9,10-HE12,IF(HE12=9,1,1/(HE12-8))) -> 5
B15: Obra Pública Tradicional (OPT) | O15: Asociación Pública-Privada (APP)
HE23: 9 | HF23: =IF(HE23<9,10-HE23,IF(HE23=9,1,1/(HE23-8))) -> 1
B26: OPT (Etapa de Construcción) + APP (Etapa de Operación y Mantenimiento) | O26: Asociación Pública-Privada (APP)
HE34: 17 | HF34: =IF(HE34<9,10-HE34,IF(HE34=9,1,1/(HE34-8))) -> 0.1111111111

Sheet Criterio3 (hidden)
B2: Rápida Disponibilidad del Servicio
B4: Obra Pública Tradicional (OPT) | O4: OPT (Etapa de Construcción) + APP (Etapa de Operación y Mantenimiento)
HE12: 12 | HF12: =IF(HE12<9,10-HE12,IF(HE12=9,1,1/(HE12-8))) -> 0.25
B15: Obra Pública Tradicional (OPT) | O15: Asociación Pública-Privada (APP)
HE23: 6 | HF23: =IF(HE23<9,10-HE23,IF(HE23=9,1,1/(HE23-8))) -> 4
B26: OPT (Etapa de Construcción) + APP (Etapa de Operación y Mantenimiento) | O26: Asociación Pública-Privada (APP)
AB29: =Resultados!D8 -> 0.0667936106
HE34: 3 | HF34: =IF(HE34<9,10-HE34,IF(HE34=9,1,1/(HE34-8))) -> 7

Sheet Criterio4 (hidden)
B2: Generación de Incentivos para la Innovación Institucional
B4: Obra Pública Tradicional (OPT) | O4: OPT (Etapa de Construcción) + APP (Etapa de Operación y Mantenimiento)
HE12: 10 | HF12: =IF(HE12<9,10-HE12,IF(HE12=9,1,1/(HE12-8))) -> 0.5
B15: Obra Pública Tradicional (OPT) | O15: Asociación Pública-Privada (APP)
AC17: =Resultados!D9 -> 0.007938506011
HE23: 8 | HF23: =IF(HE23<9,10-HE23,IF(HE23=9,1,1/(HE23-8))) -> 2
B26: OPT (Etapa de Construcción) + APP (Etapa de Operación y Mantenimiento) | O26: Asociación Pública-Privada (APP)
HE34: 7 | HF34: =IF(HE34<9,10-HE34,IF(HE34=9,1,1/(HE34-8))) -> 3

Sheet Criterio5 (hidden)
B2: Calidad de Servicio
B4: Obra Pública Tradicional (OPT) | O4: OPT (Etapa de Construcción) + APP (Etapa de Operación y Mantenimiento)
HE12: 17 | HF12: =IF(HE12<9,10-HE12,IF(HE12=9,1,1/(HE12-8))) -> 0.1111111111
B15: Obra Pública Tradicional (OPT) | O15: Asociación Pública-Privada (APP)
HE23: 14 | HF23: =IF(HE23<9,10-HE23,IF(HE23=9,1,1/(HE23-8))) -> 0.1666666667
B26: OPT (Etapa de Construcción) + APP (Etapa de Operación y Mantenimiento) | O26: Asociación Pública-Privada (APP)
HE34: 9 | HF34: =IF(HE34<9,10-HE34,IF(HE34=9,1,1/(HE34-8))) -> 1

Sheet Criterio6 (hidden)
B2: Disponibilidad Presupuestaria
B4: Obra Pública Tradicional (OPT) | O4: OPT (Etapa de Construcción) + APP (Etapa de Operación y Mantenimiento)
HE12: 13 | HF12: =IF(HE12<9,10-HE12,IF(HE12=9,1,1/(HE12-8))) -> 0.2
B15: Obra Pública Tradicional (OPT) | O15: Asociación Pública-Privada (APP)
HE23: 11 | HF23: =IF(HE23<9,10-HE23,IF(HE23=9,1,1/(HE23-8))) -> 0.3333333333
B26: OPT (Etapa de Construcción) + APP (Etapa de Operación y Mantenimiento) | O26: Asociación Pública-Privada (APP)
HE34: 8 | HF34: =IF(HE34<9,10-HE34,IF(HE34=9,1,1/(HE34-8))) -> 2

Sheet Criterio7 (hidden)
B2: Tamaño
B4: Obra Pública Tradicional (OPT) | O4: OPT (Etapa de Construcción) + APP (Etapa de Operación y Mantenimiento)
HE12: 5 | HF12: =IF(HE12<9,10-HE12,IF(HE12=9,1,1/(HE12-8))) -> 5
B15: Obra Pública Tradicional (OPT) | O15: Asociación Pública-Privada (APP)
HE23: 1 | HF23: =IF(HE23<9,10-HE23,IF(HE23=9,1,1/(HE23-8))) -> 9
B26: OPT (Etapa de Construcción) + APP (Etapa de Operación y Mantenimiento) | O26: Asociación Pública-Privada (APP)
HE34: 6 | HF34: =IF(HE34<9,10-HE34,IF(HE34=9,1,1/(HE34-8))) -> 4

Sheet Criterio8 (hidden)
B2: Sustentabilidad en el Tiempo
B4: Obra Pública Tradicional (OPT) | O4: OPT (Etapa de Construcción) + APP (Etapa de Operación y Mantenimiento)
HE12: 14 | HF12: =IF(HE12<9,10-HE12,IF(HE12=9,1,1/(HE12-8))) -> 0.1666666667
B15: Obra Pública Tradicional (OPT) | O15: Asociación Pública-Privada (APP)
HE23: 7 | HF23: =IF(HE23<9,10-HE23,IF(HE23=9,1,1/(HE23-8))) -> 3
B26: OPT (Etapa de Construcción) + APP (Etapa de Operación y Mantenimiento) | O26: Asociación Pública-Privada (APP)
HE34: 1 | HF34: =IF(HE34<9,10-HE34,IF(HE34=9,1,1/(HE34-8))) -> 9

Sheet Criterio9 (hidden)
B2: AAA
B4: Obra Pública Tradicional (OPT) | O4: OPT (Etapa de Construcción) + APP (Etapa de Operación y Mantenimiento)
HE12: 10 | HF12: =IF(HE12<9,10-HE12,IF(HE12=9,1,1/(HE12-8))) -> 0.5
B15: Obra Pública Tradicional (OPT) | O15: Asociación Pública-Privada (APP)
HE23: 9 | HF23: =IF(HE23<9,10-HE23,IF(HE23=9,1,1/(HE23-8))) -> 1
B26: OPT (Etapa de Construcción) + APP (Etapa de Operación y Mantenimiento) | O26: Asociación Pública-Privada (APP)
HE34: 6 | HF34: =IF(HE34<9,10-HE34,IF(HE34=9,1,1/(HE34-8))) -> 4

Sheet Criterio10 (hidden)
B2: BBB
B4: Obra Pública Tradicional (OPT) | O4: OPT (Etapa de Construcción) + APP (Etapa de Operación y Mantenimiento)
HE12: 9 | HF12: =IF(HE12<9,10-HE12,IF(HE12=9,1,1/(HE12-8))) -> 1
B15: Obra Pública Tradicional (OPT) | O15: Asociación Pública-Privada (APP)
HE23: 6 | HF23: =IF(HE23<9,10-HE23,IF(HE23=9,1,1/(HE23-8))) -> 4
B26: OPT (Etapa de Construcción) + APP (Etapa de Operación y Mantenimiento) | O26: Asociación Pública-Privada (APP)
HE34: 3 | HF34: =IF(HE34<9,10-HE34,IF(HE34=9,1,1/(HE34-8))) -> 7

Sheet Criterios
B2: Valor por Dinero | O2: Consideraciones Políticas | HE2: 10
HD10: 1 | HE10: 12 | HF10: =IF(HE10<9,10-HE10,IF(HE10=9,1,1/(HE10-8))) -> 0.25
B13: Valor por Dinero | O13: Rápida Disponibilidad del Servicio
HD21: 2 | HE21: 9 | HF21: =IF(HE21<9,10-HE21,IF(HE21=9,1,1/(HE21-8))) -> 1
B24: Consideraciones Políticas | O24: Rápida Disponibilidad del Servicio
HD32: 3 | HE32: 9 | HF32: =IF(HE32<9,10-HE32,IF(HE32=9,1,1/(HE32-8))) -> 1
B35: Valor por Dinero | O35: Generación de Incentivos para la Innovación Institucional
HD43: 4 | HE43: 7 | HF43: =IF(HE43<9,10-HE43,IF(HE43=9,1,1/(HE43-8))) -> 3
B46: Consideraciones Políticas | O46: Generación de Incentivos para la Innovación Institucional
HD54: 5 | HE54: 9 | HF54: =IF(HE54<9,10-HE54,IF(HE54=9,1,1/(HE54-8))) -> 1
B57: Rápida Disponibilidad del Servicio | O57: Generación de Incentivos para la Innovación Institucional
HD65: 6 | HE65: 7 | HF65: =IF(HE65<9,10-HE65,IF(HE65=9,1,1/(HE65-8))) -> 3
B68: Valor por Dinero | O68: Calidad de Servicio
HD76: 7 | HE76: 8 | HF76: =IF(HE76<9,10-HE76,IF(HE76=9,1,1/(HE76-8))) -> 2
B79: Consideraciones Políticas | O79: Calidad de Servicio
HD87: 8 | HE87: 8 | HF87: =IF(HE87<9,10-HE87,IF(HE87=9,1,1/(HE87-8))) -> 2
B90: Rápida Disponibilidad del Servicio | O90: Calidad de Servicio
HD98: 9 | HE98: 6 | HF98: =IF(HE98<9,10-HE98,IF(HE98=9,1,1/(HE98-8))) -> 4
B101: Generación de Incentivos para la Innovación Institucional | O101: Calidad de Servicio
HD109: 10 | HE109: 8 | HF109: =IF(HE109<9,10-HE109,IF(HE109=9,1,1/(HE109-8))) -> 2
B112: Valor por Dinero | O112: Disponibilidad Presupuestaria
HD120: 11 | HE120: 6 | HF120: =IF(HE120<9,10-HE120,IF(HE120=9,1,1/(HE120-8))) -> 4
B123: Consideraciones Políticas | O123: Disponibilidad Presupuestaria
HD131: 12 | HE131: 5 | HF131: =IF(HE131<9,10-HE131,IF(HE131=9,1,1/(HE131-8))) -> 5
B134: Rápida Disponibilidad del Servicio | O134: Disponibilidad Presupuestaria
HD142: 13 | HE142: 7 | HF142: =IF(HE142<9,10-HE142,IF(HE142=9,1,1/(HE142-8))) -> 3
B145: Generación de Incentivos para la Innovación Institucional | O145: Disponibilidad Presupuestaria
HD153: 14 | HE153: 6 | HF153: =IF(HE153<9,10-HE153,IF(HE153=9,1,1/(HE153-8))) -> 4
B156: Calidad de Servicio | O156: Disponibilidad Presupuestaria
HD164: 15 | HE164: 7 | HF164: =IF(HE164<9,10-HE164,IF(HE164=9,1,1/(HE164-8))) -> 3
B167: Valor por Dinero | O167: Tamaño
HD175: 16 | HE175: 5 | HF175: =IF(HE175<9,10-HE175,IF(HE175=9,1,1/(HE175-8))) -> 5
B178: Consideraciones Políticas | O178: Tamaño
HD186: 17 | HE186: 4 | HF186: =IF(HE186<9,10-HE186,IF(HE186=9,1,1/(HE186-8))) -> 6
B189: Rápida Disponibilidad del Servicio | O189: Tamaño
HD197: 18 | HE197: 7 | HF197: =IF(HE197<9,10-HE197,IF(HE197=9,1,1/(HE197-8))) -> 3
B200: Generación de Incentivos para la Innovación Institucional | O200: Tamaño
HD208: 19 | HE208: 8 | HF208: =IF(HE208<9,10-HE208,IF(HE208=9,1,1/(HE208-8))) -> 2
B211: Calidad de Servicio | O211: Tamaño
HD219: 20 | HE219: 8 | HF219: =IF(HE219<9,10-HE219,IF(HE219=9,1,1/(HE219-8))) -> 2
B222: Disponibilidad Presupuestaria | O222: Tamaño
HD230: 21 | HE230: 7 | HF230: =IF(HE230<9,10-HE230,IF(HE230=9,1,1/(HE230-8))) -> 3
B233: Valor por Dinero | O233: Sustentabilidad en el Tiempo
HD241: 22 | HE241: 4 | HF241: =IF(HE241<9,10-HE241,IF(HE241=9,1,1/(HE241-8))) -> 6
B244: Consideraciones Políticas | O244: Sustentabilidad en el Tiempo
HD252: 23 | HE252: 4 | HF252: =IF(HE252<9,10-HE252,IF(HE252=9,1,1/(HE252-8))) -> 6
B255: Rápida Disponibilidad del Servicio | O255: Sustentabilidad en el Tiempo
HD263: 24 | HE263: 3 | HF263: =IF(HE263<9,10-HE263,IF(HE263=9,1,1/(HE263-8))) -> 7
B266: Generación de Incentivos para la Innovación Institucional | O266: Sustentabilidad en el Tiempo
HD274: 25 | HE274: 7 | HF274: =IF(HE274<9,10-HE274,IF(HE274=9,1,1/(HE274-8))) -> 3
B277: Calidad de Servicio | O277: Sustentabilidad en el Tiempo
HD285: 26 | HE285: 8 | HF285: =IF(HE285<9,10-HE285,IF(HE285=9,1,1/(HE285-8))) -> 2
B288: Disponibilidad Presupuestaria | O288: Sustentabilidad en el Tiempo
HD296: 27 | HE296: 8 | HF296: =IF(HE296<9,10-HE296,IF(HE296=9,1,1/(HE296-8))) -> 2
B299: Tamaño | O299: Sustentabilidad en el Tiempo
HD307: 28 | HE307: 6 | HF307: =IF(HE307<9,10-HE307,IF(HE307=9,1,1/(HE307-8))) -> 4
B310: Valor por Dinero | O310: AAA
HD318: 29 | HE318: 2 | HF318: =IF(HE318<9,10-HE318,IF(HE318=9,1,1/(HE318-8))) -> 8
B321: Consideraciones Políticas | O321: AAA
HD329: 30 | HE329: 4 | HF329: =IF(HE329<9,10-HE329,IF(HE329=9,1,1/(HE329-8))) -> 6
B332: Rápida Disponibilidad del Servicio | O332: AAA
HD340: 31 | HE340: 7 | HF340: =IF(HE340<9,10-HE340,IF(HE340=9,1,1/(HE340-8))) -> 3
B343: Generación de Incentivos para la Innovación Institucional | O343: AAA
HD351: 32 | HE351: 3 | HF351: =IF(HE351<9,10-HE351,IF(HE351=9,1,1/(HE351-8))) -> 7
B354: Calidad de Servicio | O354: AAA
HD362: 33 | HE362: 6 | HF362: =IF(HE362<9,10-HE362,IF(HE362=9,1,1/(HE362-8))) -> 4
B365: Disponibilidad Presupuestaria | O365: AAA
HD373: 34 | HE373: 6 | HF373: =IF(HE373<9,10-HE373,IF(HE373=9,1,1/(HE373-8))) -> 4
B376: Tamaño | O376: AAA
HD384: 35 | HE384: 7 | HF384: =IF(HE384<9,10-HE384,IF(HE384=9,1,1/(HE384-8))) -> 3
B387: Sustentabilidad en el Tiempo | O387: AAA
HD395: 36 | HE395: 7 | HF395: =IF(HE395<9,10-HE395,IF(HE395=9,1,1/(HE395-8))) -> 3
B398: Valor por Dinero | O398: BBB
HD406: 37 | HE406: 6 | HF406: =IF(HE406<9,10-HE406,IF(HE406=9,1,1/(HE406-8))) -> 4
B409: Consideraciones Políticas | O409: BBB
HD417: 38 | HE417: 4 | HF417: =IF(HE417<9,10-HE417,IF(HE417=9,1,1/(HE417-8))) -> 6
B420: Rápida Disponibilidad del Servicio | O420: BBB
HD428: 39 | HE428: 6 | HF428: =IF(HE428<9,10-HE428,IF(HE428=9,1,1/(HE428-8))) -> 4
B431: Generación de Incentivos para la Innovación Institucional | O431: BBB
HD439: 40 | HE439: 7 | HF439: =IF(HE439<9,10-HE439,IF(HE439=9,1,1/(HE439-8))) -> 3
B442: Calidad de Servicio | O442: BBB
HD450: 41 | HE450: 9 | HF450: =IF(HE450<9,10-HE450,IF(HE450=9,1,1/(HE450-8))) -> 1
B453: Disponibilidad Presupuestaria | O453: BBB
HD461: 42 | HE461: 12 | HF461: =IF(HE461<9,10-HE461,IF(HE461=9,1,1/(HE461-8))) -> 0.25
B464: Tamaño | O464: BBB
HD472: 43 | HE472: 8 | HF472: =IF(HE472<9,10-HE472,IF(HE472=9,1,1/(HE472-8))) -> 2
B475: Sustentabilidad en el Tiempo | O475: BBB
HD483: 44 | HE483: 9 | HF483: =IF(HE483<9,10-HE483,IF(HE483=9,1,1/(HE483-8))) -> 1
B486: AAA | O486: BBB
HD494: 45 | HE494: 11 | HF494: =IF(HE494<9,10-HE494,IF(HE494=9,1,1/(HE494-8))) -> 0.3333333333
B508: CAMPO NO HABILITADO | C508: CAMPO NO HABILITADO | D508: CAMPO NO HABILITADO | E508: CAMPO NO HABILITADO | F508: CAMPO NO HABILITADO | G508: CAMPO NO HABILITADO | H508: CAMPO NO HABILITADO | I508: CAMPO NO HABILITADO | J508: CAMPO NO HABILITADO | K508: CAMPO NO HABILITADO | L508: CAMPO NO HABILITADO | M508: CAMPO NO HABILITADO | O508: CAMPO NO HABILITADO | P508: CAMPO NO HABILITADO | Q508: CAMPO NO HABILITADO | R508: CAMPO NO HABILITADO | S508: CAMPO NO HABILITADO | T508: CAMPO NO HABILITADO | U508: CAMPO NO HABILITADO | V508: CAMPO NO HABILITADO | W508: CAMPO NO HABILITADO | X508: CAMPO NO HABILITADO | Y508: CAMPO NO HABILITADO | Z508: CAMPO NO HABILITADO
B509: CAMPO NO HABILITADO | C509: CAMPO NO HABILITADO | D509: CAMPO NO HABILITADO | E509: CAMPO NO HABILITADO | F509: CAMPO NO HABILITADO | G509: CAMPO NO HABILITADO | H509: CAMPO NO HABILITADO | I509: CAMPO NO HABILITADO | J509: CAMPO NO HABILITADO | K509: CAMPO NO HABILITADO | L509: CAMPO NO HABILITADO | M509: CAMPO NO HABILITADO | O509: CAMPO NO HABILITADO | P509: CAMPO NO HABILITADO | Q509: CAMPO NO HABILITADO | R509: CAMPO NO HABILITADO | S509: CAMPO NO HABILITADO | T509: CAMPO NO HABILITADO | U509: CAMPO NO HABILITADO | V509: CAMPO NO HABILITADO | W509: CAMPO NO HABILITADO | X509: CAMPO NO HABILITADO | Y509: CAMPO NO HABILITADO | Z509: CAMPO NO HABILITADO

Sheet Resultados
B2: Consistencia de las Alternativas
D4: VDC
T5: 0.84375 | U5: 0.5625 | Z5: 0.3708079741 | AA5: 6.033536207 | AC5: 23.9784016
C6: Criterios 1 | D6: 0.004773828695
C7: Criterios 2 | D7: 0.03334655426
C8: Criterios 3 | D8: 0.0667936106
C9: Criterios 4 | D9: 0.007938506011
C10: Criterios 5 | D10: 0.01580431229
C11: Criterios 6 | D11: 0.003186283106
C12: Criterios 7 | D12: 0.06245225741
C13: Criterios 8 | D13: 0.04689558792
C14: Criterios 9 | D14: 0.0464665545
C15: Criterios 10 | D15: 0.04590066683
B17: Consistencia de los Criterios | D17: 0.09717699908
B19: Clasificación de Criterios y Alternativas | E19: C1 | F19: C2 | G19: C3 | H19: C4 | I19: C5 | J19: C6 | K19: C7 | L19: C8 | M19: C9 | N19: C10 | HE19: 1
E20: 0.1757608114 | F20: 0.2228763248 | G20: 0.1852672759 | H20: 0.1211240739 | I20: 0.07533821574 | J20: 0.05296426603 | K20: 0.05554709258 | L20: 0.03334551112 | M20: 0.02249534217 | N20: 0.05528108635
B21: =Matriz!M22 -> Obra Pública Tradicional (OPT) | E21: 0.4663299663 | F21: 0.4205209995 | G21: 0.2344322344 | H21: 0.2972582973 | I21: 0.06401821862 | J21: 0.1095860566 | K21: 0.7351896691 | L21: 0.1658558832 | M21: 0.2341269841 | N21: 0.4555555556 | O21: 0.3425701994
B22: =Matriz!M23 -> OPT (Etapa de Construcción) + APP (Etapa de Operación y Mantenimiento) | E22: 0.1006734007 | F22: 0.07006911217 | G22: 0.6877289377 | H22: 0.538961039 | I22: 0.4992408907 | J22: 0.5812636166 | K22: 0.1994188862 | L22: 0.7643660687 | M22: 0.5793650794 | N22: 0.4555555556 | O22: 0.3691860654 | P22: Alternativa seleccionada
B23: =Matriz!M24 -> Asociación Pública-Privada (APP) | E23: 0.432996633 | F23: 0.5094098884 | G23: 0.07783882784 | H23: 0.1637806638 | I23: 0.4367408907 | J23: 0.3091503268 | K23: 0.06539144471 | L23: 0.06977804804 | M23: 0.1865079365 | N23: 0.08888888889 | O23: 0.2882437352
B25: Seleccione Gráfico

Sheet Matriz (hidden)
A1: Criterio 1 | F1: Criterio 2 | K1: Criterio 3 | P1: Criterio 4 | U1: Criterio 5 | Z1: Criterio 6 | AE1: Criterio 7 | AJ1: Criterio 8 | AO1: Criterio 9 | AT1: Criterio 10
A2: =Entrada!C2 -> 3 | B2: A1 | C2: A2 | D2: A3 | F2: =Entrada!C2 -> 3 | G2: A1 | H2: A2 | I2: A3 | K2: =Entrada!C2 -> 3 | L2: A1 | M2: A2 | N2: A3 | P2: =Entrada!C2 -> 3 | Q2: A1 | R2: A2 | S2: A3 | U2: =Entrada!C2 -> 3 | V2: A1 | W2: A2 | X2: A3 | Z2: =Entrada!C2 -> 3 | AA2: A1 | AB2: A2 | AC2: A3 | AE2: =Entrada!C2 -> 3 | AF2: A1 | AG2: A2 | AH2: A3 | AJ2: =Entrada!C2 -> 3 | AK2: A1 | AL2: A2 | AM2: A3 | AO2: =Entrada!C2 -> 3 | AP2: A1 | AQ2: A2 | AR2: A3 | AT2: =Entrada!C2 -> 3 | AU2: A1 | AV2: A2 | AW2: A3
A3: A1 | B3: 1 | C3: =Criterio1!HF12 -> 5 | D3: =Criterio1!HF23 -> 1 | F3: A1 | G3: 1 | H3: =Criterio2!HF12 -> 5 | I3: =Criterio2!HF23 -> 1 | K3: A1 | L3: 1 | M3: =Criterio3!HF12 -> 0.25 | N3: =Criterio3!HF23 -> 4 | P3: A1 | Q3: 1 | R3: =Criterio4!HF12 -> 0.5 | S3: =Criterio4!HF23 -> 2 | U3: A1 | V3: 1 | W3: =Criterio5!HF12 -> 0.1111111111 | X3: =Criterio5!HF23 -> 0.1666666667 | Z3: A1 | AA3: 1 | AB3: =Criterio6!HF12 -> 0.2 | AC3: =Criterio6!HF23 -> 0.3333333333 | AE3: A1 | AF3: 1 | AG3: =Criterio7!HF12 -> 5 | AH3: =Criterio7!HF23 -> 9 | AJ3: A1 | AK3: 1 | AL3: =Criterio8!HF12 -> 0.1666666667 | AM3: =Criterio8!HF23 -> 3 | AO3: A1 | AP3: 1 | AQ3: =Criterio9!HF12 -> 0.5 | AR3: =Criterio9!HF23 -> 1 | AT3: A1 | AU3: 1 | AV3: =Criterio10!HF12 -> 1 | AW3: =Criterio10!HF23 -> 4
A4: A2 | B4: =1/C3 -> 0.2 | C4: 1 | D4: =Criterio1!HF34 -> 0.25 | F4: A2 | G4: =1/H3 -> 0.2 | H4: 1 | I4: =Criterio2!HF34 -> 0.1111111111 | K4: A2 | L4: =1/M3 -> 4 | M4: 1 | N4: =Criterio3!HF34 -> 7 | P4: A2 | Q4: =1/R3 -> 2 | R4: 1 | S4: =Criterio4!HF34 -> 3 | U4: A2 | V4: =1/W3 -> 9 | W4: 1 | X4: =Criterio5!HF34 -> 1 | Z4: A2 | AA4: =1/AB3 -> 5 | AB4: 1 | AC4: =Criterio6!HF34 -> 2 | AE4: A2 | AF4: =1/AG3 -> 0.2 | AG4: 1 | AH4: =Criterio7!HF34 -> 4 | AJ4: A2 | AK4: =1/AL3 -> 6 | AL4: 1 | AM4: =Criterio8!HF34 -> 9 | AO4: A2 | AP4: =1/AQ3 -> 2 | AQ4: 1 | AR4: =Criterio9!HF34 -> 4 | AT4: A2 | AU4: =1/AV3 -> 1 | AV4: 1 | AW4: =Criterio10!HF34 -> 7
A5: A3 | B5: =1/D3 -> 1 | C5: =1/D4 -> 4 | D5: 1 | F5: A3 | G5: =1/I3 -> 1 | H5: =1/I4 -> 9 | I5: 1 | K5: A3 | L5: =1/N3 -> 0.25 | M5: =1/N4 -> 0.1428571429 | N5: 1 | P5: A3 | Q5: =1/S3 -> 0.5 | R5: =1/S4 -> 0.3333333333 | S5: 1 | U5: A3 | V5: =1/X3 -> 6 | W5: =1/X4 -> 1 | X5: 1 | Z5: A3 | AA5: =1/AC3 -> 3 | AB5: =1/AC4 -> 0.5 | AC5: 1 | AE5: A3 | AF5: =1/AH3 -> 0.1111111111 | AG5: =1/AH4 -> 0.25 | AH5: 1 | AJ5: A3 | AK5: =1/AM3 -> 0.3333333333 | AL5: =1/AM4 -> 0.1111111111 | AM5: 1 | AO5: A3 | AP5: =1/AR3 -> 1 | AQ5: =1/AR4 -> 0.25 | AR5: 1 | AT5: A3 | AU5: =1/AW3 -> 0.25 | AV5: =1/AW4 -> 0.1428571429 | AW5: 1
A7: 4 | B7: C1 | C7: C2 | D7: C3 | E7: C4 | F7: C5 | G7: C6 | H7: C7 | I7: C8 | J7: C9 | K7: C10 | N7: Suma | O7: =IF($A$7=2,SUM(B8:B9),IF($A$7=3,SUM(B8:B10),IF($A$7=4,SUM(B8:B11),IF($A$7=5,SUM(B8:B12),IF($A$7=6,SUM(B8:B13),IF($A$7=7,SUM(B8:B14),IF($A$7=8,SUM(B8:B15),IF($A$7=9,SUM(B8:B16),SUM(B8:B17))))))))) -> 6.333333333 | P7: =IF($A$7=2,SUM(C8:C9),IF($A$7=3,SUM(C8:C10),IF($A$7=4,SUM(C8:C11),IF($A$7=5,SUM(C8:C12),IF($A$7=6,SUM(C8:C13),IF($A$7=7,SUM(C8:C14),IF($A$7=8,SUM(C8:C15),IF($A$7=9,SUM(C8:C16),SUM(C8:C17))))))))) -> 3.25 | Q7: =IF($A$7=2,"",IF($A$7=3,SUM(D8:D10),IF($A$7=4,SUM(D8:D11),IF($A$7=5,SUM(D8:D12),IF($A$7=6,SUM(D8:D13),IF($A$7=7,SUM(D8:D14),IF($A$7=8,SUM(D8:D15),IF($A$7=9,SUM(D8:D16),SUM(D8:D17))))))))) -> 3.333333333 | R7: =IF($A$7=2,"",IF($A$7=3,"",IF($A$7=4,SUM(E8:E11),IF($A$7=5,SUM(E8:E12),IF($A$7=6,SUM(E8:E13),IF($A$7=7,SUM(E8:E14),IF($A$7=8,SUM(E8:E15),IF($A$7=9,SUM(E8:E16),SUM(E8:E17))))))))) -> 8 | S7: =IF($A$7=2,"",IF($A$7=3,"",IF($A$7=4,"",IF($A$7=5,SUM(F8:F12),IF($A$7=6,SUM(F8:F13),IF($A$7=7,SUM(F8:F14),IF($A$7=8,SUM(F8:F15),IF($A$7=9,SUM(F8:F16),SUM(F8:F17))))))))) ->  | T7: =IF($A$7=2,"",IF($A$7=3,"",IF($A$7=4,"",IF($A$7=5,"",IF($A$7=6,SUM(G8:G13),IF($A$7=7,SUM(G8:G14),IF($A$7=8,SUM(G8:G15),IF($A$7=9,SUM(G8:G16),SUM(G8:G17))))))))) ->  | U7: =IF($A$7=2,"",IF($A$7=3,"",IF($A$7=4,"",IF($A$7=5,"",IF($A$7=6,"",IF($A$7=7,SUM(H8:H14),IF($A$7=8,SUM(H8:H15),IF($A$7=9,SUM(H8:H16),SUM(H8:H17))))))))) ->  | V7: =IF($A$7=2,"",IF($A$7=3,"",IF($A$7=4,"",IF($A$7=5,"",IF($A$7=6,"",IF($A$7=7,"",IF($A$7=8,SUM(I8:I15),IF($A$7=9,SUM(I8:I16),SUM(I8:I17))))))))) ->  | W7: =IF($A$7=2,"",IF($A$7=3,"",IF($A$7=4,"",IF($A$7=5,"",IF($A$7=6,"",IF($A$7=7,"",IF($A$7=8,"",IF($A$7=9,SUM(J8:J16),SUM(J8:J17))))))))) ->  | X7: =IF($A$7=2,"",IF($A$7=3,"",IF($A$7=4,"",IF($A$7=5,"",IF($A$7=6,"",IF($A$7=7,"",IF($A$7=8,"",IF($A$7=9,"",SUM(K8:K17))))))))) ->  | AA7: Promd | AB7: Sumpd | AD7: Vmáx | AE7: =IF($A$7=2,AVERAGE(AD8:AD9),IF(A7=3,AVERAGE(AD8:AD10),IF(A7=4,AVERAGE(AD8:AD11),IF(A7=5,AVERAGE(AD8:AD12),IF(A7=6,AVERAGE(AD8:AD13),IF(A7=7,AVERAGE(AD8:AD14),IF(A7=8,AVERAGE(AD8:AD15),IF(A7=9,AVERAGE(AD8:AD16),AVERAGE(AD8:AD17))))))))) -> 4.630743441 | AG7: IDC | AH7: =ABS(AE7-A7)/(A7-1) -> 0.2102478137 | AK7: Clasificación de Alternativas
A8: C1 | B8: 1 | C8: =Criterios!HF10 -> 0.25 | D8: =Criterios!HF21 -> 1 | E8: =Criterios!HF43 -> 3 | F8: =Criterios!HF76 -> 2 | G8: =Criterios!HF120 -> 4 | H8: =Criterios!HF175 -> 5 | I8: =Criterios!HF241 -> 6 | J8: =Criterios!HF318 -> 8 | K8: =Criterios!HF406 -> 4 | N8: =A8 -> C1 | O8: =B8/$O$7 -> 0.1578947368 | P8: =C8/$P$7 -> 0.07692307692 | Q8: =IF(OR(A7<3,Q7=""),"",D8/$Q$7) -> 0.3 | R8: =IF(OR(A7<4,R7=""),"",E8/$R$7) -> 0.375 | S8: =IF(OR(A7<5,S7=""),"",F8/$S$7) ->  | T8: =IF(OR(A7<6,T7=""),"",G8/$T$7) ->  | U8: =IF(OR(A7<7,U7=""),"",H8/$U$7) ->  | V8: =IF(OR(A7<8,V7=""),"",I8/$V$7) ->  | W8: =IF(OR(A7<9,W7=""),"",J8/$W$7) ->  | X8: =IF(OR(A7<10,X7=""),"",K8/$X$7) ->  | AA8: =IF($A$7=2,AVERAGE(O8:P8),IF($A$7=3,AVERAGE(O8:Q8),IF($A$7=4,AVERAGE(O8:R8),IF($A$7=5,AVERAGE(O8:S8),IF($A$7=6,AVERAGE(O8:T8),IF($A$7=7,AVERAGE(O8:U8),IF($A$7=8,AVERAGE(O8:V8),IF($A$7=9,AVERAGE(O8:W8),AVERAGE(O8:X8))))))))) -> 0.2274544534 | AB8: =IF($A$7=2,MMULT(B8:C8,$AA$8:$AA$9),IF($A$7=3,MMULT(B8:D8,$AA$8:$AA$10),IF($A$7=4,MMULT(B8:E8,$AA$8:$AA$11),IF($A$7=5,MMULT(B8:F8,$AA$8:$AA$12),IF(A7=6,MMULT(B8:G8,$AA$8:$AA$13),IF(A7=7,MMULT(B8:H8,$AA$8:$AA$14),IF(A7=8,MMULT(B8:I8,$AA$8:$AA$15),IF(A7=9,MMULT(B8:J8,$AA$8:$AA$16),MMULT(B8:K8,$AA$8:$AA$17))))))))) -> 1.036861083 | AD8: =AB8/AA8 -> 4.558543776 | AG8: IA | AH8: =IF(A7=2,0.001,IF(A7=3,0.58,IF(A7=4,0.9,IF(A7=5,1.12,IF(A7=6,1.24,IF(A7=7,1.32,IF(A7=8,1.41,IF(A7=9,1.45,1.49)))))))) -> 0.9 | AK8: =Entrada!C10 -> 0
A9: C2 | B9: =1/C8 -> 4 | C9: 1 | D9: =Criterios!HF32 -> 1 | E9: =Criterios!HF54 -> 1 | F9: =Criterios!HF87 -> 2 | G9: =Criterios!HF131 -> 5 | H9: =Criterios!HF186 -> 6 | I9: =Criterios!HF252 -> 6 | J9: =Criterios!HF329 -> 6 | K9: =Criterios!HF417 -> 6 | N9: =A9 -> C2 | O9: =B9/$O$7 -> 0.6315789474 | P9: =C9/$P$7 -> 0.3076923077 | Q9: =IF(OR(A7<3,Q7=""),"",D9/$Q$7) -> 0.3 | R9: =IF(OR(A7<4,R7=""),"",E9/$R$7) -> 0.125 | S9: =IF(OR(A7<5,S7=""),"",F9/$S$7) ->  | T9: =IF(OR(A7<6,T7=""),"",G9/$T$7) ->  | U9: =IF(OR(A7<7,U7=""),"",H9/$U$7) ->  | V9: =IF(OR(A7<8,V7=""),"",I9/$V$7) ->  | W9: =IF(OR(A7<9,W7=""),"",J9/$W$7) ->  | X9: =IF(OR(A7<10,X7=""),"",K9/$X$7) ->  | AA9: =IF($A$7=2,AVERAGE(O9:P9),IF($A$7=3,AVERAGE(O9:Q9),IF($A$7=4,AVERAGE(O9:R9),IF($A$7=5,AVERAGE(O9:S9),IF($A$7=6,AVERAGE(O9:T9),IF($A$7=7,AVERAGE(O9:U9),IF($A$7=8,AVERAGE(O9:V9),IF($A$7=9,AVERAGE(O9:W9),AVERAGE(O9:X9))))))))) -> 0.3410678138 | AB9: =IF($A$7=2,MMULT(B9:C9,$AA$8:$AA$9),IF($A$7=3,MMULT(B9:D9,$AA$8:$AA$10),IF($A$7=4,MMULT(B9:E9,$AA$8:$AA$11),IF($A$7=5,MMULT(B9:F9,$AA$8:$AA$12),IF($A$7=6,MMULT(B9:G9,$AA$8:$AA$13),IF($A$7=7,MMULT(B9:H9,$AA$8:$AA$14),IF($A$7=8,MMULT(B9:I9,$AA$8:$AA$15),IF($A$7=9,MMULT(B9:J9,$AA$8:$AA$16),MMULT(B9:K9,$AA$8:$AA$17))))))))) -> 1.68236336 | AD9: =AB9/AA9 -> 4.932635952 | AG9: VDC | AH9: =AH7/AH8 -> 0.2336086818 | AK9: =Entrada!C11 -> 0
A10: C3 | B10: =1/D8 -> 1 | C10: =1/D9 -> 1 | D10: 1 | E10: =Criterios!HF65 -> 3 | F10: =Criterios!HF98 -> 4 | G10: =Criterios!HF142 -> 3 | H10: =Criterios!HF197 -> 3 | I10: =Criterios!HF263 -> 7 | J10: =Criterios!HF340 -> 3 | K10: =Criterios!HF428 -> 4 | N10: C3 | O10: =IF(A7<3,"",B10/$O$7) -> 0.1578947368 | P10: =IF(A7<3,"",C10/$P$7) -> 0.3076923077 | Q10: =IF(OR(A7<3,Q7=""),"",D10/$Q$7) -> 0.3 | R10: =IF(OR(A7<4,R7=""),"",E10/$R$7) -> 0.375 | S10: =IF(OR(A7<5,S7=""),"",F10/$S$7) ->  | T10: =IF(OR(A7<6,T7=""),"",G10/$T$7) ->  | U10: =IF(OR(A7<7,U7=""),"",H10/$U$7) ->  | V10: =IF(OR(A7<8,V7=""),"",I10/$V$7) ->  | W10: =IF(OR(A7<9,W7=""),"",J10/$W$7) ->  | X10: =IF(OR(A7<10,X7=""),"",K10/$X$7) ->  | AA10: =IF($A$7=2,"",IF($A$7=3,AVERAGE(O10:Q10),IF($A$7=4,AVERAGE(O10:R10),IF($A$7=5,AVERAGE(O10:S10),IF($A$7=6,AVERAGE(O10:T10),IF($A$7=7,AVERAGE(O10:U10),IF($A$7=8,AVERAGE(O10:V10),IF($A$7=9,AVERAGE(O10:W10),AVERAGE(O10:X10))))))))) -> 0.2851467611 | AB10: =IF($A$7=2,"",IF($A$7=3,MMULT(B10:D10,$AA$8:$AA$10),IF($A$7=4,MMULT(B10:E10,$AA$8:$AA$11),IF($A$7=5,MMULT(B10:F10,$AA$8:$AA$12),IF($A$7=6,MMULT(B10:G10,$AA$8:$AA$13),IF($A$7=7,MMULT(B10:H10,$AA$8:$AA$14),IF($A$7=8,MMULT(B10:I10,$AA$8:$AA$15),IF($A$7=9,MMULT(B10:J10,$AA$8:$AA$16),MMULT(B10:K10,$AA$8:$AA$17))))))))) -> 1.292661943 | AD10: =IF(A7>2,AB10/AA10,"") -> 4.533321501 | AK10: =Entrada!C12 -> 0
A11: C4 | B11: =1/E8 -> 0.3333333333 | C11: =1/E9 -> 1 | D11: =1/E10 -> 0.3333333333 | E11: 1 | F11: =Criterios!HF109 -> 2 | G11: =Criterios!HF153 -> 4 | H11: =Criterios!HF208 -> 2 | I11: =Criterios!HF274 -> 3 | J11: =Criterios!HF351 -> 7 | K11: =Criterios!HF439 -> 3 | N11: C4 | O11: =IF(A7<4,"",B11/$O$7) -> 0.05263157895 | P11: =IF(A7<4,"",C11/$P$7) -> 0.3076923077 | Q11: =IF(OR(A7<4,Q7=""),"",D11/$Q$7) -> 0.1 | R11: =IF(OR(A7<4,R7=""),"",E11/$R$7) -> 0.125 | S11: =IF(OR(A7<5,S7=""),"",F11/$S$7) ->  | T11: =IF(OR(A7<6,T7=""),"",G11/$T$7) ->  | U11: =IF(OR(A7<7,U7=""),"",H11/$U$7) ->  | V11: =IF(OR(A7<8,V7=""),"",I11/$V$7) ->  | W11: =IF(OR(A7<9,W7=""),"",J11/$W$7) ->  | X11: =IF(OR(A7<10,X7=""),"",K11/$X$7) ->  | AA11: =IF($A$7=2,"",IF($A$7=3,"",IF($A$7=4,AVERAGE(O11:R11),IF($A$7=5,AVERAGE(O11:S11),IF($A$7=6,AVERAGE(O11:T11),IF($A$7=7,AVERAGE(O11:U11),IF($A$7=8,AVERAGE(O11:V11),IF($A$7=9,AVERAGE(O11:W11),AVERAGE(O11:X11))))))))) -> 0.1463309717 | AB11: =IF($A$7=2,"",IF($A$7=3,"",IF($A$7=4,MMULT(B11:E11,$AA$8:$AA$11),IF($A$7=5,MMULT(B11:F11,$AA$8:$AA$12),IF($A$7=6,MMULT(B11:G11,$AA$8:$AA$13),IF($A$7=7,MMULT(B11:H11,$AA$8:$AA$14),IF($A$7=8,MMULT(B11:I11,$AA$8:$AA$15),IF($A$7=9,MMULT(B11:J11,$AA$8:$AA$16),MMULT(B11:K11,$AA$8:$AA$17))))))))) -> 0.658265857 | AD11: =IF(A7>3,AB11/AA11,"") -> 4.498472534 | AK11: =Entrada!C13 -> 0
A12: C5 | B12: =1/F8 -> 0.5 | C12: =1/F9 -> 0.5 | D12: =1/F10 -> 0.25 | E12: =1/F11 -> 0.5 | F12: 1 | G12: =Criterios!HF164 -> 3 | H12: =Criterios!HF219 -> 2 | I12: =Criterios!HF285 -> 2 | J12: =Criterios!HF362 -> 4 | K12: =Criterios!HF450 -> 1 | N12: C5 | O12: =IF(A7<5,"",B12/$O$7) ->  | P12: =IF(A7<5,"",C12/$P$7) ->  | Q12: =IF(OR(A7<5,Q7=""),"",D12/$Q$7) ->  | R12: =IF(OR(A7<5,R7=""),"",E12/$R$7) ->  | S12: =IF(OR(A7<5,S7=""),"",F12/$S$7) ->  | T12: =IF(OR(A7<6,T7=""),"",G12/$T$7) ->  | U12: =IF(OR(A7<7,U7=""),"",H12/$U$7) ->  | V12: =IF(OR(A7<8,V7=""),"",I12/$V$7) ->  | W12: =IF(OR(A7<9,W7=""),"",J12/$W$7) ->  | X12: =IF(OR(A7<10,X7=""),"",K12/$X$7) ->  | AA12: =IF($A$7=2,"",IF($A$7=3,"",IF($A$7=4,"",IF($A$7=5,AVERAGE(O12:S12),IF($A$7=6,AVERAGE(O12:T12),IF($A$7=7,AVERAGE(O12:U12),IF($A$7=8,AVERAGE(O12:V12),IF($A$7=9,AVERAGE(O12:W12),AVERAGE(O12:X12))))))))) ->  | AB12: =IF($A$7=2,"",IF($A$7=3,"",IF($A$7=4,"",IF($A$7=5,MMULT(B12:F12,$AA$8:$AA$12),IF($A$7=6,MMULT(B12:G12,$AA$8:$AA$13),IF($A$7=7,MMULT(B12:H12,$AA$8:$AA$14),IF($A$7=8,MMULT(B12:I12,$AA$8:$AA$15),IF($A$7=9,MMULT(B12:J12,$AA$8:$AA$16),MMULT(B12:K12,$AA$8:$AA$17))))))))) ->  | AD12: =IF(A7>4,AB12/AA12,"") ->  | AK12: =Entrada!C14 -> 0
A13: C6 | B13: =1/G8 -> 0.25 | C13: =1/G9 -> 0.2 | D13: =1/G10 -> 0.3333333333 | E13: =1/G11 -> 0.25 | F13: =1/G12 -> 0.3333333333 | G13: 1 | H13: =Criterios!HF230 -> 3 | I13: =Criterios!HF296 -> 2 | J13: =Criterios!HF373 -> 4 | K13: =Criterios!HF461 -> 0.25 | N13: C6 | O13: =IF(A7<6,"",B13/$O$7) ->  | P13: =IF(A7<6,"",C13/$P$7) ->  | Q13: =IF(OR(A7<6,Q7=""),"",D13/$Q$7) ->  | R13: =IF(OR(A7<6,R7=""),"",E13/$R$7) ->  | S13: =IF(OR(A7<6,S7=""),"",F13/$S$7) ->  | T13: =IF(OR(A7<6,T7=""),"",G13/$T$7) ->  | U13: =IF(OR(A7<7,U7=""),"",H13/$U$7) ->  | V13: =IF(OR(A7<8,V7=""),"",I13/$V$7) ->  | W13: =IF(OR(A7<9,W7=""),"",J13/$W$7) ->  | X13: =IF(OR(A7<10,X7=""),"",K13/$X$7) ->  | AA13: =IF($A$7=2,"",IF($A$7=3,"",IF($A$7=4,"",IF($A$7=5,"",IF($A$7=6,AVERAGE(O13:T13),IF($A$7=7,AVERAGE(O13:U13),IF($A$7=8,AVERAGE(O13:V13),IF($A$7=9,AVERAGE(O13:W13),AVERAGE(O13:X13))))))))) ->  | AB13: =IF($A$7=2,"",IF($A$7=3,"",IF($A$7=4,"",IF($A$7=5,"",IF($A$7=6,MMULT(B13:G13,$AA$8:$AA$13),IF($A$7=7,MMULT(B13:H13,$AA$8:$AA$14),IF($A$7=8,MMULT(B13:I13,$AA$8:$AA$15),IF($A$7=9,MMULT(B13:J13,$AA$8:$AA$16),MMULT(B13:K13,$AA$8:$AA$17))))))))) ->  | AD13: =IF(A7>5,AB13/AA13,"") ->  | AK13: =Entrada!C15 -> 0
A14: C7 | B14: =1/H8 -> 0.2 | C14: =1/H9 -> 0.1666666667 | D14: =1/H10 -> 0.3333333333 | E14: =1/H11 -> 0.5 | F14: =1/H12 -> 0.5 | G14: =1/H13 -> 0.3333333333 | H14: 1 | I14: =Criterios!HF307 -> 4 | J14: =Criterios!HF384 -> 3 | K14: =Criterios!HF472 -> 2 | N14: C7 | O14: =IF(A7<7,"",B14/$O$7) ->  | P14: =IF(A7<7,"",C14/$P$7) ->  | Q14: =IF(OR(A7<7,Q7=""),"",D14/$Q$7) ->  | R14: =IF(OR(A7<7,R7=""),"",E14/$R$7) ->  | S14: =IF(OR(A7<7,S7=""),"",F14/$S$7) ->  | T14: =IF(OR(A7<7,T7=""),"",G14/$T$7) ->  | U14: =IF(OR(A7<7,U7=""),"",H14/$U$7) ->  | V14: =IF(OR(A7<8,V7=""),"",I14/$V$7) ->  | W14: =IF(OR(A7<9,Q7=""),"",J14/$W$7) ->  | X14: =IF(OR(A7<10,X7=""),"",K14/$X$7) ->  | AA14: =IF($A$7=2,"",IF($A$7=3,"",IF($A$7=4,"",IF($A$7=5,"",IF($A$7=6,"",IF($A$7=7,AVERAGE(O14:U14),IF($A$7=8,AVERAGE(O14:V14),IF($A$7=9,AVERAGE(O14:W14),AVERAGE(O14:X14))))))))) ->  | AB14: =IF($A$7=2,"",IF($A$7=3,"",IF($A$7=4,"",IF($A$7=5,"",IF($A$7=6,"",IF($A$7=7,MMULT(B14:H14,$AA$8:$AA$14),IF($A$7=8,MMULT(B14:I14,$AA$8:$AA$15),IF($A$7=9,MMULT(B14:J14,$AA$8:$AA$16),MMULT(B14:K14,$AA$8:$AA$17))))))))) ->  | AD14: =IF(A7>6,AB14/AA14,"") ->  | AK14: =Entrada!C16 -> 0
A15: C8 | B15: =1/I8 -> 0.1666666667 | C15: =1/I9 -> 0.1666666667 | D15: =1/I10 -> 0.1428571429 | E15: =1/I11 -> 0.3333333333 | F15: =1/I12 -> 0.5 | G15: =1/I13 -> 0.5 | H15: =1/I14 -> 0.25 | I15: 1 | J15: =Criterios!HF395 -> 3 | K15: =Criterios!HF483 -> 1 | N15: C8 | O15: =IF(A7<8,"",B15/$O$7) ->  | P15: =IF(A7<8,"",C15/$P$7) ->  | Q15: =IF(OR(A7<8,Q7=""),"",D15/$Q$7) ->  | R15: =IF(OR(A7<8,R7=""),"",E15/$R$7) ->  | S15: =IF(OR(A7<8,S7=""),"",F15/$S$7) ->  | T15: =IF(OR(A7<8,T7=""),"",G15/$T$7) ->  | U15: =IF(OR(A7<8,U7=""),"",H15/$U$7) ->  | V15: =IF(OR(A7<8,V7=""),"",I15/$V$7) ->  | W15: =IF(OR(A7<9,W7=""),"",J15/$W$7) ->  | X15: =IF(OR(A7<10,X7=""),"",K15/$X$7) ->  | AA15: =IF($A$7=2,"",IF($A$7=3,"",IF($A$7=4,"",IF($A$7=5,"",IF($A$7=6,"",IF($A$7=7,"",IF($A$7=8,AVERAGE(O15:V15),IF($A$7=9,AVERAGE(O15:W15),AVERAGE(O15:X15))))))))) ->  | AB15: =IF($A$7=2,"",IF($A$7=3,"",IF($A$7=4,"",IF($A$7=5,"",IF($A$7=6,"",IF($A$7=7,"",IF($A$7=8,MMULT(B15:I15,$AA$8:$AA$15),IF($A$7=9,MMULT(B15:J15,$AA$8:$AA$16),MMULT(B15:K15,$AA$8:$AA$17))))))))) ->  | AD15: =IF(A7>7,AB15/AA15,"") ->  | AK15: =Entrada!C17 -> 0
A16: C9 | B16: =1/J8 -> 0.125 | C16: =1/J9 -> 0.1666666667 | D16: =1/J10 -> 0.3333333333 | E16: =1/J11 -> 0.1428571429 | F16: =1/J12 -> 0.25 | G16: =1/J13 -> 0.25 | H16: =1/J14 -> 0.3333333333 | I16: =1/J15 -> 0.3333333333 | J16: 1 | K16: =Criterios!HF494 -> 0.3333333333 | N16: C9 | O16: =IF(A7<9,"",B16/$O$7) ->  | P16: =IF(A7<9,"",C16/$P$7) ->  | Q16: =IF(OR(A7<9,Q7=""),"",D16/$Q$7) ->  | R16: =IF(OR(A7<9,R7=""),"",E16/$R$7) ->  | S16: =IF(OR(A7<9,S7=""),"",F16/$S$7) ->  | T16: =IF(OR(A7<9,T7=""),"",G16/$T$7) ->  | U16: =IF(OR(A7<9,U7=""),"",H16/$U$7) ->  | V16: =IF(OR(A7<9,V7=""),"",I16/$V$7) ->  | W16: =IF(OR(A7<9,W7=""),"",J16/$W$7) ->  | X16: =IF(OR(A7<10,X7=""),"",K16/$X$7) ->  | AA16: =IF($A$7=2,"",IF($A$7=3,"",IF($A$7=4,"",IF($A$7=5,"",IF($A$7=6,"",IF($A$7=7,"",IF($A$7=8,"",IF($A$7=9,AVERAGE(O16:W16),AVERAGE(O16:X16))))))))) ->  | AB16: =IF($A$7=2,"",IF($A$7=3,"",IF($A$7=4,"",IF($A$7=5,"",IF($A$7=6,"",IF($A$7=7,"",IF($A$7=8,"",IF($A$7=9,MMULT(B16:J16,$AA$8:$AA$16),MMULT(B16:K16,$AA$8:$AA$17))))))))) ->  | AD16: =IF(A7>8,AB16/AA16,"") ->  | AK16: =IF(Entrada!C18="","",Entrada!C18) -> 
A17: C10 | B17: =1/K8 -> 0.25 | C17: =1/K9 -> 0.1666666667 | D17: =1/K10 -> 0.25 | E17: =1/K11 -> 0.3333333333 | F17: =1/K12 -> 1 | G17: =1/K13 -> 4 | H17: =1/K14 -> 0.5 | I17: =1/K15 -> 1 | J17: =1/K16 -> 3 | K17: 1 | N17: C10 | O17: =IF(A7<10,"",B17/$O$7) ->  | P17: =IF(A7<10,"",C17/$P$7) ->  | Q17: =IF(OR(A7<10,Q7=""),"",D17/$Q$7) ->  | R17: =IF(OR(A7<10,R7=""),"",E17/$R$7) ->  | S17: =IF(OR(A7<10,S7=""),"",F17/$S$7) ->  | T17: =IF(OR(A7<10,T7=""),"",G17/$T$7) ->  | U17: =IF(OR(A7<10,U7=""),"",H17/$U$7) ->  | V17: =IF(OR(A7<10,V7=""),"",I17/$V$7) ->  | W17: =IF(OR(A7<10,W7=""),"",J17/$W$7) ->  | X17: =IF(OR(A7<10,X7=""),"",K17/$X$7) ->  | AA17: =IF($A$7=2,"",IF($A$7=3,"",IF($A$7=4,"",IF($A$7=5,"",IF($A$7=6,"",IF($A$7=7,"",IF($A$7=8,"",IF($A$7=9,"",AVERAGE(O17:X17))))))))) ->  | AB17: =IF($A$7=2,"",IF($A$7=3,"",IF($A$7=4,"",IF($A$7=5,"",IF($A$7=6,"",IF($A$7=7,"",IF($A$7=8,"",IF($A$7=9,"",MMULT(B17:K17,$AA$8:$AA$17))))))))) ->  | AD17: =IF(A7>9,AB17/AA17,"") ->  | AK17: =IF(Entrada!C19="","",Entrada!C19) -> 
A19: 1 | B19: 2 | C19: 3 | D19: 4 | E19: 5 | F19: 6 | G19: 7 | H19: 8 | I19: 9 | J19: 10 | K19: 11 | L19: 12 | M19: 13 | N19: 14 | O19: 15 | P19: 16 | Q19: 17 | R19: 18 | S19: 19 | T19: 20 | U19: 21 | V19: 22 | W19: 23 | X19: 24 | Y19: 25
O20: C1 | P20: C2 | Q20: C3 | R20: C4 | S20: C5 | T20: C6 | U20: C7 | V20: C8 | W20: C9 | X20: C10
O21: =AA8 -> 0.2274544534 | P21: =AA9 -> 0.3410678138 | Q21: =IF(AA10="","",AA10) -> 0.2851467611 | R21: =IF(AA11="","",AA11) -> 0.1463309717 | S21: =IF(AA12="","",AA12) ->  | T21: =IF(AA13="","",AA13) ->  | U21: =IF(AA14="","",AA14) ->  | V21: =IF(AA15="","",AA15) ->  | W21: =IF(AA16="","",AA16) ->  | X21: =IF(AA17="","",AA17) -> 
M22: =Entrada!C4 -> Obra Pública Tradicional (OPT) | N22: A1 | O22: =F28 -> 0.4663299663 | P22: =T28 -> 0.4205209995 | Q22: =AH28 -> 0.2344322344 | R22: =F34 -> 0.2972582973 | S22: =T34 -> 0.06401821862 | T22: =AH34 -> 0.1095860566 | U22: =F40 -> 0.7351896691 | V22: =T40 -> 0.1658558832 | W22: =AH40 -> 0.2341269841 | X22: =F46 -> 0.4555555556 | Y22: =IF(A7=2,MMULT(Matriz!$O$21:$P$21,TRANSPOSE(Matriz!O22:P22)),IF(A7=3,MMULT(Matriz!$O$21:$Q$21,TRANSPOSE(Matriz!O22:Q22)),IF(A7=4,MMULT(Matriz!$O$21:$R$21,TRANSPOSE(Matriz!O22:R22)),IF(A7=5,MMULT(Matriz!$O$21:$S$21,TRANSPOSE(Matriz!O22:S22)),IF(A7=6,MMULT(Matriz!$O$21:$T$21,TRANSPOSE(Matriz!O22:T22)),IF(A7=7,MMULT(Matriz!$O$21:$U$21,TRANSPOSE(Matriz!O22:U22)),IF(A7=8,MMULT(Matriz!$O$21:$V$21,TRANSPOSE(Matriz!O22:V22)),IF(A7=9,MMULT(Matriz!$O$21:$W$21,TRANSPOSE(Matriz!O22:W22)),MMULT(Matriz!$O$21:$X$21,TRANSPOSE(Matriz!O22:X22)))))))))) -> 0.3598406934
M23: =Entrada!C5 -> OPT (Etapa de Construcción) + APP (Etapa de Operación y Mantenimiento) | N23: A2 | O23: =F29 -> 0.1006734007 | P23: =T29 -> 0.07006911217 | Q23: =AH29 -> 0.6877289377 | R23: =F35 -> 0.538961039 | S23: =T35 -> 0.4992408907 | T23: =AH35 -> 0.5812636166 | U23: =F41 -> 0.1994188862 | V23: =T41 -> 0.7643660687 | W23: =AH41 -> 0.5793650794 | X23: =F47 -> 0.4555555556 | Y23: =IF(A7=2,MMULT(Matriz!$O$21:$P$21,TRANSPOSE(Matriz!O23:P23)),IF(A7=3,MMULT(Matriz!$O$21:$Q$21,TRANSPOSE(Matriz!O23:Q23)),IF(A7=4,MMULT(Matriz!$O$21:$R$21,TRANSPOSE(Matriz!O23:R23)),IF(A7=5,MMULT(Matriz!$O$21:$S$21,TRANSPOSE(Matriz!O23:S23)),IF(A7=6,MMULT(Matriz!$O$21:$T$21,TRANSPOSE(Matriz!O23:T23)),IF(A7=7,MMULT(Matriz!$O$21:$U$21,TRANSPOSE(Matriz!O23:U23)),IF(A7=8,MMULT(Matriz!$O$21:$V$21,TRANSPOSE(Matriz!O23:V23)),IF(A7=9,MMULT(Matriz!$O$21:$W$21,TRANSPOSE(Matriz!O23:W23)),MMULT(Matriz!$O$21:$X$21,TRANSPOSE(Matriz!O23:X23)))))))))) -> 0.3217673039
M24: =IF(Entrada!C6="","",Entrada!C6) -> Asociación Pública-Privada (APP) | N24: A3 | O24: =IF(A2=2,"",F30) -> 0.432996633 | P24: 0.5094098884 | Q24: 0.07783882784 | R24: 0.1637806638 | S24: 0.4367408907 | T24: =AH36 -> 0.3091503268 | U24: =F42 -> 0.06539144471 | V24: 0.06977804804 | W24: =AH42 -> 0.1865079365 | X24: 0.08888888889 | Y24: =IF(A7=2,MMULT(Matriz!$O$21:$P$21,TRANSPOSE(Matriz!O24:P24)),IF(A7=2,MMULT(Matriz!$O$21:$P$21,TRANSPOSE(Matriz!O24:P24)),IF(A7=3,MMULT(Matriz!$O$21:$Q$21,TRANSPOSE(Matriz!O24:Q24)),IF(A7=4,MMULT(Matriz!$O$21:$R$21,TRANSPOSE(Matriz!O24:R24)),IF(A7=5,MMULT(Matriz!$O$21:$S$21,TRANSPOSE(Matriz!O24:S24)),IF(A7=6,MMULT(Matriz!$O$21:$T$21,TRANSPOSE(Matriz!O24:T24)),IF(A7=7,MMULT(Matriz!$O$21:$U$21,TRANSPOSE(Matriz!O24:U24)),IF(A7=8,MMULT(Matriz!$O$21:$V$21,TRANSPOSE(Matriz!O24:V24)),IF(A7=9,MMULT(Matriz!$O$21:$W$21,TRANSPOSE(Matriz!O24:W24)),MMULT(Matriz!$O$21:$X$21,TRANSPOSE(Matriz!O24:X24))))))))))) -> 0.3183920028
A26: CRITERIO 1 | O26: CRITERIO 2 | AC26: CRITERIO 3
A27: Suma | B27: =IF(A2=2,SUM(B3:B4),SUM(B3:B5)) -> 2.2 | C27: =IF(A2=2,SUM(C3:C4),SUM(C3:C5)) -> 10 | D27: =IF(A2=2,"",SUM(D3:D5)) -> 2.25 | F27: Promd | G27: Sumpd | I27: Vmáx | J27: =IF(A2=2,AVERAGE(I28:I29),AVERAGE(I28:I30)) -> 3.005537641 | L27: IDC | M27: =ABS(J27-A2)/(A2-1) -> 0.002768820643 | O27: Suma | P27: =IF($F$2=2,SUM(G3:G4),SUM(G3:G5)) -> 2.2 | Q27: =IF($F$2=2,SUM(H3:H4),SUM(H3:H5)) -> 15 | R27: =IF($F$2=2,"",SUM(I3:I5)) -> 2.111111111 | T27: Promd | U27: Sumpd | W27: Vmáx | X27: =IF(F2=2,AVERAGE(W28:W29),AVERAGE(W28:W30)) -> 3.038682003 | Z27: IDC | AA27: =ABS(X27-F2)/(F2-1) -> 0.01934100147 | AC27: Suma | AD27: =IF($K$2=2,SUM(L3:L4),SUM(L3:L5)) -> 5.25 | AE27: =IF($K$2=2,SUM(M3:M4),SUM(M3:M5)) -> 1.392857143 | AF27: =IF($K$2=2,"",SUM(N3:N5)) -> 12 | AH27: Promd | AI27: Sumpd | AK27: Vmáx | AL27: =IF(K2=2,AVERAGE(AK28:AK29),AVERAGE(AK28:AK30)) -> 3.077480588 | AN27: IDC | AO27: =ABS(AL27-K2)/(K2-1) -> 0.03874029415
A28: A1 | B28: =B3/$B$27 -> 0.4545454545 | C28: =C3/$C$27 -> 0.5 | D28: =IF(A2=3,D3/$D$27,"") -> 0.4444444444 | F28: =IF(A2=2,AVERAGE(B28:C28),AVERAGE(B28:D28)) -> 0.4663299663 | G28: =IF(A2=2,MMULT(B3:C3,$F$28:$F$29),MMULT(B3:D3,$F$28:$F$30)) -> 1.402693603 | I28: =G28/F28 -> 3.007942238 | L28: IA | M28: =IF(A2=2,0.001,0.58) -> 0.58 | O28: A1 | P28: =G3/P27 -> 0.4545454545 | Q28: =H3/$Q$27 -> 0.3333333333 | R28: =IF($F$2=3,I3/$R$27,"") -> 0.4736842105 | T28: =IF($F$2=2,AVERAGE(P28:Q28),AVERAGE(P28:R28)) -> 0.4205209995 | U28: =IF($F$2=2,MMULT(G3:H3,$T$28:$T$29),MMULT(G3:I3,$T$28:$T$30)) -> 1.280276449 | W28: =U28/T28 -> 3.044500632 | Z28: IA | AA28: =IF(F2=2,0.001,0.58) -> 0.58 | AC28: A1 | AD28: =L3/AD27 -> 0.1904761905 | AE28: =M3/$AE$27 -> 0.1794871795 | AF28: =IF($K$2=3,N3/$AF$27,"") -> 0.3333333333 | AH28: =IF($F$2=2,AVERAGE(AD28:AE28),AVERAGE(AD28:AF28)) -> 0.2344322344 | AI28: =IF($K$2=2,MMULT(L3:M3,$AH$28:$AH$29),MMULT(L3:N3,$AH$28:$AH$30)) -> 0.7177197802 | AK28: =AI28/AH28 -> 3.061523438 | AN28: IA | AO28: =IF(K2=2,0.001,0.58) -> 0.58
A29: A2 | B29: =B4/$B$27 -> 0.09090909091 | C29: =C4/$C$27 -> 0.1 | D29: =IF(A2=3,D4/$D$27,"") -> 0.1111111111 | F29: =IF(A3=2,AVERAGE(B29:C29),AVERAGE(B29:D29)) -> 0.1006734007 | G29: =IF(A2=2,MMULT(B4:C4,$F$28:$F$29),MMULT(B4:D4,$F$28:$F$30)) -> 0.3021885522 | I29: =G29/F29 -> 3.001672241 | L29: VDC | M29: =M27/M28 -> 0.004773828695 | O29: A2 | P29: =G4/$P$27 -> 0.09090909091 | Q29: =H4/$Q$27 -> 0.06666666667 | R29: =IF($F$2=3,I4/$R$27,"") -> 0.05263157895 | T29: =IF($F$2=2,AVERAGE(P29:Q29),AVERAGE(P29:R29)) -> 0.07006911217 | U29: =IF($F$2=2,MMULT(G4:H4,$T$28:$T$29),MMULT(G4:I4,$T$28:$T$30)) -> 0.2107744108 | W29: =U29/T29 -> 3.00809307 | Z29: VDC | AA29: =AA27/AA28 -> 0.03334655426 | AC29: A2 | AD29: =L4/$AD$27 -> 0.7619047619 | AE29: =M4/$AE$27 -> 0.7179487179 | AF29: =IF($K$2=3,N4/$AF$27,"") -> 0.5833333333 | AH29: =IF($F$2=2,AVERAGE(AD29:AE29),AVERAGE(AD29:AF29)) -> 0.6877289377 | AI29: =IF($K$2=2,MMULT(L4:M4,$AH$28:$AH$29),MMULT(L4:N4,$AH$28:$AH$30)) -> 2.17032967 | AK29: =AI29/AH29 -> 3.155792277 | AN29: VDC | AO29: =AO27/AO28 -> 0.0667936106
A30: A3 | B30: =IF(A2=2,"",B5/$B$27) -> 0.4545454545 | C30: =IF(A2=2,"",C5/$C$27) -> 0.4 | D30: =IF(A2=3,D5/$D$27,"") -> 0.4444444444 | F30: =IF(A2=2,"",AVERAGE(B30:D30)) -> 0.432996633 | G30: =IF(A2=2,"",MMULT(B5:D5,$F$28:$F$30)) -> 1.302020202 | I30: =IF(A2=2,"",G30/F30) -> 3.006998445 | O30: A3 | P30: =IF(F2=2,"",G5/$P$27) -> 0.4545454545 | Q30: =IF(F2=2,"",H5/$Q$27) -> 0.6 | R30: =IF($F$2=3,I5/$R$27,"") -> 0.4736842105 | T30: =IF($F$2=2,"",AVERAGE(P30:R30)) -> 0.5094098884 | U30: =IF($F$2=2,"",MMULT(G5:I5,$T$28:$T$30)) -> 1.560552897 | W30: =IF(F2=2,"",U30/T30) -> 3.063452306 | AC30: A3 | AD30: =IF(K2=2,"",L5/$AD$27) -> 0.04761904762 | AE30: =IF(K2=2,"",M5/$AE$27) -> 0.1025641026 | AF30: =IF($K$2=3,N5/$AF$27,"") -> 0.08333333333 | AH30: =IF($F$2=2,"",AVERAGE(AD30:AF30)) -> 0.07783882784 | AI30: =IF($K$2=2,"",MMULT(L5:N5,$AH$28:$AH$30)) -> 0.2346938776 | AK30: =IF(K2=2,"",AI30/AH30) -> 3.01512605
A32: CRITERIO 4 | O32: CRITERIO 5 | AC32: CRITERIO 6
A33: Suma | B33: =IF($P$2=2,SUM(Q3:Q4),SUM(Q3:Q5)) -> 3.5 | C33: =IF($P$2=2,SUM(R3:R4),SUM(R3:R5)) -> 1.833333333 | D33: =IF($P$2=2,"",SUM(S3:S5)) -> 6 | F33: Promd | G33: Sumpd | I33: Vmáx | J33: =IF(P2=2,AVERAGE(I34:I35),AVERAGE(I34:I36)) -> 3.009208667 | L33: IDC | M33: =ABS(J33-P2)/(P2-1) -> 0.004604333486 | O33: Suma | P33: =IF($U$2=2,SUM(V3:V4),SUM(V3:V5)) -> 16 | Q33: =IF($U$2=2,SUM(W3:W4),SUM(W3:W5)) -> 2.111111111 | R33: =IF($U$2=2,"",SUM(X3:X5)) -> 2.166666667 | T33: Promd | U33: Sumpd | W33: Vmáx | X33: =IF(U2=2,AVERAGE(W34:W35),AVERAGE(W34:W36)) -> 3.018333002 | Z33: IDC | AA33: =ABS(X33-U2)/(U2-1) -> 0.00916650113 | AC33: Suma | AD33: =IF($Z$2=2,SUM(AA3:AA4),SUM(AA3:AA5)) -> 9 | AE33: =IF($Z$2=2,SUM(AB3:AB4),SUM(AB3:AB5)) -> 1.7 | AF33: =IF($Z$2=2,"",SUM(AC3:AC5)) -> 3.333333333 | AH33: Promd | AI33: Sumpd | AK33: Vmáx | AL33: =IF(Z2=2,AVERAGE(AK34:AK35),AVERAGE(AK34:AK36)) -> 3.003696088 | AN33: IDC | AO33: =ABS(AL33-Z2)/(Z2-1) -> 0.001848044202
A34: A1 | B34: =Q3/B33 -> 0.2857142857 | C34: =R3/C33 -> 0.2727272727 | D34: =IF(P2=3,S3/$D$33,"") -> 0.3333333333 | F34: =IF($P$2=2,AVERAGE(B34:C34),AVERAGE(B34:D34)) -> 0.2972582973 | G34: =IF($P$2=2,MMULT(Q3:R3,$F$34:$F$35),MMULT(Q3:S3,$F$34:$F$36)) -> 0.8943001443 | I34: =G34/F34 -> 3.008495146 | L34: IA | M34: =IF(P2=2,0.001,0.58) -> 0.58 | O34: A1 | P34: =V3/P33 -> 0.0625 | Q34: =W3/$Q$33 -> 0.05263157895 | R34: =IF($U$2=3,X3/$R$33,"") -> 0.07692307692 | T34: =IF($U$2=2,AVERAGE(P34:Q34),AVERAGE(P34:R34)) -> 0.06401821862 | U34: =IF($U$2=2,MMULT(V3:W3,$T$34:$T$35),MMULT(V3:X3,$T$34:$T$36)) -> 0.1922795771 | W34: =U34/T34 -> 3.003513395 | Z34: IA | AA34: =IF(U2=2,0.001,0.58) -> 0.58 | AC34: A1 | AD34: =AA3/AD33 -> 0.1111111111 | AE34: =AB3/$AE$33 -> 0.1176470588 | AF34: =IF($Z$2=3,AC3/$AF$33,"") -> 0.1 | AH34: =IF($Z$2=2,AVERAGE(AD34:AE34),AVERAGE(AD34:AF34)) -> 0.1095860566 | AI34: =IF($Z$2=2,MMULT(AA3:AB3,$AH$34:$AH$35),MMULT(AA3:AC3,$AH$34:$AH$36)) -> 0.3288888889 | AK34: =AI34/AH34 -> 3.001192843 | AN34: IA | AO34: =IF(Z2=2,0.001,0.58) -> 0.58
A35: A2 | B35: =Q4/$B$33 -> 0.5714285714 | C35: =R4/C33 -> 0.5454545455 | D35: =IF(P2=3,S4/$D$33,"") -> 0.5 | F35: =IF($P$2=2,AVERAGE(B35:C35),AVERAGE(B35:D35)) -> 0.538961039 | G35: =IF($P$2=2,MMULT(Q4:R4,$F$34:$F$35),MMULT(Q4:S4,$F$34:$F$36)) -> 1.624819625 | I35: =G35/F35 -> 3.014725569 | L35: VDC | M35: =M33/M34 -> 0.007938506011 | O35: A2 | P35: =V4/P33 -> 0.5625 | Q35: =W4/$Q$33 -> 0.4736842105 | R35: =IF($U$2=3,X4/$R$33,"") -> 0.4615384615 | T35: =IF($U$2=2,AVERAGE(P35:Q35),AVERAGE(P35:R35)) -> 0.4992408907 | U35: =IF($U$2=2,MMULT(V4:W4,$T$34:$T$35),MMULT(V4:X4,$T$34:$T$36)) -> 1.512145749 | W35: =U35/T35 -> 3.028890015 | Z35: VDC | AA35: =AA33/AA34 -> 0.01580431229 | AC35: A2 | AD35: =AA4/$AD$33 -> 0.5555555556 | AE35: =AB4/$AE$33 -> 0.5882352941 | AF35: =IF($Z$2=3,AC4/$AF$33,"") -> 0.6 | AH35: =IF($Z$2=2,AVERAGE(AD35:AE35),AVERAGE(AD35:AF35)) -> 0.5812636166 | AI35: =IF($Z$2=2,MMULT(AA4:AB4,$AH$34:$AH$35),MMULT(AA4:AC4,$AH$34:$AH$36)) -> 1.747494553 | AK35: =AI35/AH35 -> 3.006371814 | AN35: VDC | AO35: =AO33/AO34 -> 0.003186283106
A36: A3 | B36: =IF($P$2=2,"",Q5/B33) -> 0.1428571429 | C36: =IF($P$2=2,"",R5/C33) -> 0.1818181818 | D36: =IF(P2=3,S5/$D$33,"") -> 0.1666666667 | F36: =IF($P$2=2,"",AVERAGE(B36:D36)) -> 0.1637806638 | G36: =IF($P$2=2,"",MMULT(Q5:S5,$F$34:$F$36)) -> 0.4920634921 | I36: =IF(P2=2,"",G36/F36) -> 3.004405286 | O36: A3 | P36: =IF(U2=2,"",V5/P33) -> 0.375 | Q36: =IF(U2=2,"",W5/Q33) -> 0.4736842105 | R36: =IF($U$2=3,X5/$R$33,"") -> 0.4615384615 | T36: =IF($U$2=2,"",AVERAGE(P36:R36)) -> 0.4367408907 | U36: =IF($U$2=2,"",MMULT(V5:X5,$T$34:$T$36)) -> 1.320091093 | W36: =IF(U2=2,"",U36/T36) -> 3.022595597 | AC36: A3 | AD36: =IF($Z$2=2,"",AA5/AD33) -> 0.3333333333 | AE36: =IF($Z$2=2,"",AB5/AE33) -> 0.2941176471 | AF36: =IF($Z$2=3,AC5/$AF$33,"") -> 0.3 | AH36: =IF($Z$2=2,"",AVERAGE(AD36:AF36)) -> 0.3091503268 | AI36: =IF($Z$2=2,"",MMULT(AA5:AC5,$AH$34:$AH$36)) -> 0.928540305 | AK36: =IF(Z2=2,"",AI36/AH36) -> 3.003523608
A38: CRITERIO 7 | O38: CRITERIO 8 | AC38: CRITERIO 9
A39: Suma | B39: =IF($AE$2=2,SUM(AF3:AF4),SUM(AF3:AF5)) -> 1.311111111 | C39: =IF($AE$2=2,SUM(AG3:AG4),SUM(AG3:AG5)) -> 6.25 | D39: =IF($AE$2=2,"",SUM(AH3:AH5)) -> 14 | F39: Promd | G39: Sumpd | I39: Vmáx | J39: =IF(AE2=2,AVERAGE(I40:I41),AVERAGE(I40:I42)) -> 3.072444619 | L39: IDC | M39: =ABS(J39-AE2)/(AE2-1) -> 0.0362223093 | O39: Suma | P39: =IF($AJ$2=2,SUM(AK3:AK4),SUM(AK3:AK5)) -> 7.333333333 | Q39: =IF($AJ$2=2,SUM(AL3:AL4),SUM(AL3:AL5)) -> 1.277777778 | R39: =IF($AJ$2=2,"",SUM(AM3:AM5)) -> 13 | T39: Promd | U39: Sumpd | W39: Vmáx | X39: =IF(AJ2=2,AVERAGE(W40:W41),AVERAGE(W40:W42)) -> 3.054398882 | Z39: IDC | AA39: =ABS(X39-AJ2)/(AJ2-1) -> 0.02719944099 | AC39: Suma | AD39: =IF($AO$2=2,SUM(AP3:AP4),SUM(AP3:AP5)) -> 4 | AE39: =IF($AO$2=2,SUM(AQ3:AQ4),SUM(AQ3:AQ5)) -> 1.75 | AF39: =IF($AO$2=2,"",SUM(AR3:AR5)) -> 6 | AH39: Promd | AI39: Sumpd | AK39: Vmáx | AL39: =IF(AO2=2,AVERAGE(AK40:AK41),AVERAGE(AK40:AK42)) -> 3.053901203 | AN39: IDC | AO39: =ABS(AL39-AO2)/(AO2-1) -> 0.02695060161
A40: A1 | B40: =AF3/$B$39 -> 0.7627118644 | C40: =AG3/$C$39 -> 0.8 | D40: =IF(AE2=3,AH3/$D$39,"") -> 0.6428571429 | F40: =IF($AE$2=2,AVERAGE(B40:C40),AVERAGE(B40:D40)) -> 0.7351896691 | G40: =IF($AE$2=2,MMULT(AF3:AG3,$F$40:$F$41),MMULT(AF3:AH3,$F$40:$F$42)) -> 2.320807103 | I40: =G40/F40 -> 3.156746075 | L40: IA | M40: =IF(AE2=2,0.001,0.58) -> 0.58 | O40: A1 | P40: =AK3/$P$39 -> 0.1363636364 | Q40: =AL3/$Q$39 -> 0.1304347826 | R40: =IF($AJ$2=3,AM3/$R$39,"") -> 0.2307692308 | T40: =IF(AJ2=2,AVERAGE(P40:Q40),AVERAGE(P40:R40)) -> 0.1658558832 | U40: =IF($AJ$2=2,MMULT(AK3:AL3,$T$40:$T$41),MMULT(AK3:AM3,$T$40:$T$42)) -> 0.5025843721 | W40: =U40/T40 -> 3.030247479 | Z40: IA | AA40: =IF(AJ2=2,0.001,0.58) -> 0.58 | AC40: A1 | AD40: =AP3/$AD$39 -> 0.25 | AE40: =AQ3/$AE$39 -> 0.2857142857 | AF40: =IF($AO$2=2,"",AR3/$AF$39) -> 0.1666666667 | AH40: =IF($AO$2=2,AVERAGE(AD40:AE40),AVERAGE(AD40:AF40)) -> 0.2341269841 | AI40: =IF($AO$2=2,MMULT(AP3:AQ3,$AH$40:$AH$41),MMULT(AP3:AR3,$AH$40:$AH$42)) -> 0.7103174603 | AK40: =AI40/AH40 -> 3.033898305 | AN40: IA | AO40: =IF(AO2=2,0.001,0.58) -> 0.58
A41: A2 | B41: =AF4/$B$39 -> 0.1525423729 | C41: =AG4/$C$39 -> 0.16 | D41: =IF(AE2=3,AH4/$D$39,"") -> 0.2857142857 | F41: =IF($AE$2=2,AVERAGE(B41:C41),AVERAGE(B41:D41)) -> 0.1994188862 | G41: =IF($AE$2=2,MMULT(AF4:AG4,$F$40:$F$41),MMULT(AF4:AH4,$F$40:$F$42)) -> 0.6080225989 | I41: =G41/F41 -> 3.048971993 | L41: VDC | M41: =M39/M40 -> 0.06245225741 | O41: A2 | P41: =AK4/$P$39 -> 0.8181818182 | Q41: =AL4/$Q$39 -> 0.7826086957 | R41: =IF($AJ$2=3,AM4/$R$39,"") -> 0.6923076923 | T41: =IF(AJ3=2,AVERAGE(P41:Q41),AVERAGE(P41:R41)) -> 0.7643660687 | U41: =IF($AJ$2=2,MMULT(AK4:AL4,$T$40:$T$41),MMULT(AK4:AM4,$T$40:$T$42)) -> 2.387503801 | W41: =U41/T41 -> 3.123508353 | Z41: VDC | AA41: =AA39/AA40 -> 0.04689558792 | AC41: A2 | AD41: =AP4/$AD$39 -> 0.5 | AE41: =AQ4/$AE$39 -> 0.5714285714 | AF41: =IF($AO$2=2,"",AR4/$AF$39) -> 0.6666666667 | AH41: =IF($AO$2=2,AVERAGE(AD41:AE41),AVERAGE(AD41:AF41)) -> 0.5793650794 | AI41: =IF($AO$2=2,MMULT(AP4:AQ4,$AH$40:$AH$41),MMULT(AP4:AR4,$AH$40:$AH$42)) -> 1.793650794 | AK41: =AI41/AH41 -> 3.095890411 | AN41: VDC | AO41: =AO39/AO40 -> 0.0464665545
A42: A3 | B42: =IF(AE2=2,"",AF5/$B$39) -> 0.08474576271 | C42: =IF(AE2=2,"",AG5/$C$39) -> 0.04 | D42: =IF(AE2=3,AH5/$D$39,"") -> 0.07142857143 | F42: =IF($AE$2=2,"",AVERAGE(B42:D42)) -> 0.06539144471 | G42: =IF($AE$2=2,"",MMULT(AF5:AH5,$F$40:$F$42)) -> 0.1969339073 | I42: =IF(AE2=2,"",G42/F42) -> 3.011615788 | O42: A3 | P42: =IF(AJ2=2,"",AK5/$P$39) -> 0.04545454545 | Q42: =IF(AJ2=2,"",AL5/$Q$39) -> 0.08695652174 | R42: =IF($AJ$2=3,AM5/$R$39,"") -> 0.07692307692 | T42: =IF(AJ2=2,"",AVERAGE(P42:R42)) -> 0.06977804804 | U42: =IF($AJ$2=2,"",MMULT(AK5:AM5,$T$40:$T$42)) -> 0.2099929056 | W42: =IF(AJ2=2,"",U42/T42) -> 3.009440813 | AC42: A3 | AD42: =IF(AO2=2,"",AP5/$AD$39) -> 0.25 | AE42: =IF(AO2=2,"",AQ5/$AE$39) -> 0.1428571429 | AF42: =IF($AO$2=2,"",AR5/$AF$39) -> 0.1666666667 | AH42: =IF($AO$2=2,"",AVERAGE(AD42:AF42)) -> 0.1865079365 | AI42: =IF($AO$2=2,"",MMULT(AP5:AR5,$AH$40:$AH$42)) -> 0.5654761905 | AK42: =IF(AO2=2,"",AI42/AH42) -> 3.031914894
A44: CRITERIO 10
A45: Suma | B45: =IF($AT$2=2,SUM(AU3:AU4),SUM(AU3:AU5)) -> 2.25 | C45: =IF($AT$2=2,SUM(AV3:AV4),SUM(AV3:AV5)) -> 2.142857143 | D45: =IF($AT$2=2,"",SUM(AW3:AW5)) -> 12 | F45: Promd | G45: Sumpd | I45: Vmáx | J45: =IF(AE8=2,AVERAGE(I46:I47),AVERAGE(I46:I48)) -> 3.053244774 | L45: IDC | M45: =ABS(J45-AT2)/(AT2-1) -> 0.02662238676
A46: A1 | B46: =AU3/$B$45 -> 0.4444444444 | C46: =AV3/$C$45 -> 0.4666666667 | D46: =IF(AE8=3,AH9/$D$39,"") ->  | F46: =IF($AT$2=2,AVERAGE(B46:C46),AVERAGE(B46:D46)) -> 0.4555555556 | G46: =IF($AT$2=2,MMULT(AU3:AV3,$F$46:$F$47),MMULT(AU3:AW3,$F$46:$F$48)) -> 1.266666667 | I46: =G46/F46 -> 2.780487805 | L46: IA | M46: =IF(AT2=2,0.001,0.58) -> 0.58
A47: A2 | B47: =AU4/$B$45 -> 0.4444444444 | C47: =AV4/$C$45 -> 0.4666666667 | D47: =IF(AE9=3,AH10/$D$39,"") ->  | F47: =IF($AT$2=2,AVERAGE(B47:C47),AVERAGE(B47:D47)) -> 0.4555555556 | G47: =IF($AT$2=2,MMULT(AU4:AV4,$F$46:$F$47),MMULT(AU4:AW4,$F$46:$F$48)) -> 1.533333333 | I47: =G47/F47 -> 3.365853659 | L47: VDC | M47: =M45/M46 -> 0.04590066683
A48: A3 | B48: =IF(AT2=2,"",AU5/$B$45) -> 0.1111111111 | C48: =IF(AT2=2,"",AV5/$C$45) -> 0.06666666667 | D48: =IF(AE10=3,AH11/$D$39,"") ->  | F48: =IF($AT$2=2,"",AVERAGE(B48:D48)) -> 0.08888888889 | G48: =IF($AT$2=2,"",MMULT(AU5:AW5,$F$46:$F$48)) -> 0.2678571429 | I48: =IF(AT2=2,"",G48/F48) -> 3.013392857
B102: 2
